Workbook

Sheet EXPLANATION
B4: DISCLAIMER
B6: - GTS only provide's this file as service, no rights whatsoever may be derived from these calculations, shipper' bookings and GTS Invoices are leading.
B7: - Tariffs used in the calculation are the total prices for 2026
B8: - Total price is the sum of the all-in transmission tariff and the neutrality charge, whereby:
B9: - transmission tariffs for 2026 are established by the Dutch regulator ACM (26 May 2025)
B10: - neutrality charges for 2026 are established by GTS in accordance with the calculation methodology as stated in de Transmission Code Gas TSO
C11: https://www.gasunietransportservices.nl/en/news/tariff-decision-2026
B12: - Multipliers and seasonal factors used as established by the Duth regulator ACM in the NC TAR decision (25 April 2024):
C13: https://www.acm.nl/nl/publicaties/codebesluit-ter-uitvoering-van-nc-tar | I13: (Dutch)
B15: LEGEND
B17: GREEN | E17: Input cells to be filled out by user
B18: BLUE | E18: Fixed input data
B19: YELLOW | E19: Calculated value
B20: ORANGE | E20: Calculated resulting value
B21: BLACK | E21: Information sheets (this explanation sheet and sheets with calculation of the total prices)
B23: EXPLANATION CALCULATION TOOL PERIOD BOOKING
B25: Introduction
B26: This tool converts a flat (non-profiled) booking for a booking period of less than one year into an optimum combination of yearly, quarterly, monthly and daily capacity products. The tool determines the cheapest combination in line with (a) - (c) of the 'optimisation paragraphs' of described in article 2.1.2. of the Transmission Code Gas TSO (quote):
B30: “If a recognised programme-responsible party or connected parties with exit capacity at domestic entry and exit points contract entry or exit capacity at an entry or exit point on the same day in any given combination of quarterly, monthly, and daily capacity products, the network operator of the national gas transmission grid shall, at the request of the recognised programme-responsible party or connected parties with exit capacity, do the following for each tranche of the same quantity of contracted entry or exit capacity:
B35: a. | C35: If the payable price for the combination of contracted quarterly, monthly, and daily capacity products is greater than the price of a yearly capacity product, then the yearly capacity product shall be contracted for the tranche in question, provided the required capacity is available at the relevant entry or exit point;
B39: b. | C39: If the payable price for the combination of contracted monthly and daily capacity products in one gas quarter is greater than the price of the relevant quarterly capacity product, then the relevant quarterly capacity product shall be contracted, provided the required capacity is available at the relevant entry or exit point; or
B43: c. | C43: If the payable price for the combination of contracted daily capacity products in one month is greater than the payable price for the monthly capacity product, then the relevant monthly capacity product shall be contracted, provided the required capacity is available at the relevant entry or exit point.”
B47: The main steps in the optimisation are
B49: * | C49: the period booking is converted into non-optimised subsequent capacity products;
B51: * | C51: if the payable price for the combination of daily capacity products in one month is greater than the payable price for the monthly capacity product, then the relevant monthly capacity products applies;
B54: * | C54: if the payable price for the combination of monthly and daily capacity products in one gas quarter is greater than the price of the relevant quarterly capacity products, then the relevant quarterly capacity product applies;
B57: * | C57: if the payable price for the combination of quarterly, monthly and daily capacity products is greater than the price for a yearly capacity product, then the relevant yearly capacity product applies. When the by the shipper chosen period leads to less than 12 consecutive months in the yearly booking, shipper is requested to adjust the start or end date creating 12 consecutive months in the yearly booking.
B61: Output
B62: For the period of shipper’s choosing the resulting capacity products are shown including the corresponding estimated monthly invoice (based on 2026 total price).
B65: Disclaimer
B66: This calculation tool advises shippers the cheapest combination of capacity products, based on the given input. Shippers obviously remain responsible for (timely) contracting the right (combination of) capacity products themselves. No rights or whatsoever can be derived from this calculation tool.

Sheet Period booking
B4: CALCULATION TOOL FOR OPTIMISATION OF PERIOD BOOKINGS INTO (Y, Q, M, DA) FIRM CAPACITY PRODUCTS
B6: Please fill in the appropriate values in the GREEN fields and find the optimalisation results below
B8: Start date | C8: =IF(OR(ISERROR(DAY($D$8)),ISERROR(DAY($D$9))),1,IF(OR($D$9<$D$8,$D$9>$D$8+366,$D$11<0),1,0)) -> 0 | D8: 2026-01-01 | E8: =IF(OR(ISERROR(DAY($D$8)),ISERROR(DAY($D$9))),"WARNING: calculation not reliable due to incorrect start or end date; please correct!",IF(D9<D8,"WARNING: calculation not reliable due to incorrect start and end date (start date NOT before end date); please correct!",IF(D9>D8+366," WARNING: calculation not reliable due to incorrect start and end date (period > 1 year), please correct!",""))) -> 
B9: End date (including) | D9: 2026-12-31 | E9: =IF(Optimalisation!$T$53=11,"REMARK: for this period a yearly booking is cheaper; please add 12th month to period for monthly cost estimate!",IF(Optimalisation!$T$53=10,"REMARK: for this period a yearly booking is cheaper; please add 11th and 12th month to period for monthly cost estimate!",IF(Optimalisation!$T$53=9,"REMARK: for this period a yearly booking is cheaper; please add 10th, 11th and 12th month to period for monthly cost estimate!",""))) -> 
B10: Postage stamp point | D10: Exit non-storage | E10: For all dates/periods, the prices used in the calculation tool are the total prices 2026 (see sheet 'Explanation')
B11: Quantity | C11: kWh/h | D11: 100,000 | E11: =IF(D11<0,"WARNING: quantity is negative, please correct to positive value!","") -> 
B13: PERIOD BOOKING CONVERTED INTO OPTIMISED COMBINATION OF Y, Q, M, DA CAPACITY PRODUCTS
B15: Month | C15: Year | D15: Yearly capacity booking | E15: Quarterly capacity booking | F15: Monthly capacity booking | G15: Daily capacity booking | H15: Cost/month based on 2026 tariffs
D16: kWh/h | E16: kWh/h | F16: kWh/h | G16: kWh/h | H16: EUR
G18: Total cost: | H18: =SUM(H19:H42) -> € 494,150
B19: January | C19: =IF($C$8=1,"",YEAR(D$8)) -> 2026 | D19: =IF($C$8=1,"",Optimalisation!Y29) -> Y | E19: =IF($C$8=1,"",Optimalisation!Z29) ->  | F19: =IF($C$8=1,"",Optimalisation!AA29) ->  | G19: =IF($C$8=1,"",Optimalisation!AB29) ->  | H19: =IF($C$8=1,"",Optimalisation!X29) -> € 41,969
B20: February | C20: =IF($C$8=1,"",YEAR(D$8)) -> 2026 | D20: =IF($C$8=1,"",Optimalisation!Y30) -> Y | E20: =IF($C$8=1,"",Optimalisation!Z30) ->  | F20: =IF($C$8=1,"",Optimalisation!AA30) ->  | G20: =IF($C$8=1,"",Optimalisation!AB30) ->  | H20: =IF($C$8=1,"",Optimalisation!X30) -> € 37,907
B21: March | C21: 2026 | D21: =IF($C$8=1,"",Optimalisation!Y31) -> Y | E21: =IF($C$8=1,"",Optimalisation!Z31) ->  | F21: =IF($C$8=1,"",Optimalisation!AA31) ->  | G21: =IF($C$8=1,"",Optimalisation!AB31) ->  | H21: =IF($C$8=1,"",Optimalisation!X31) -> € 41,969
B22: April | C22: 2026 | D22: =IF($C$8=1,"",Optimalisation!Y32) -> Y | E22: =IF($C$8=1,"",Optimalisation!Z32) ->  | F22: =IF($C$8=1,"",Optimalisation!AA32) ->  | G22: =IF($C$8=1,"",Optimalisation!AB32) ->  | H22: =IF($C$8=1,"",Optimalisation!X32) -> € 40,615
B23: May | C23: 2026 | D23: =IF($C$8=1,"",Optimalisation!Y33) -> Y | E23: =IF($C$8=1,"",Optimalisation!Z33) ->  | F23: =IF($C$8=1,"",Optimalisation!AA33) ->  | G23: =IF($C$8=1,"",Optimalisation!AB33) ->  | H23: =IF($C$8=1,"",Optimalisation!X33) -> € 41,969
B24: June | C24: 2026 | D24: =IF($C$8=1,"",Optimalisation!Y34) -> Y | E24: =IF($C$8=1,"",Optimalisation!Z34) ->  | F24: =IF($C$8=1,"",Optimalisation!AA34) ->  | G24: =IF($C$8=1,"",Optimalisation!AB34) ->  | H24: =IF($C$8=1,"",Optimalisation!X34) -> € 40,615
B25: July | C25: 2026 | D25: =IF($C$8=1,"",Optimalisation!Y35) -> Y | E25: =IF($C$8=1,"",Optimalisation!Z35) ->  | F25: =IF($C$8=1,"",Optimalisation!AA35) ->  | G25: =IF($C$8=1,"",Optimalisation!AB35) ->  | H25: =IF($C$8=1,"",Optimalisation!X35) -> € 41,969
B26: August | C26: 2026 | D26: =IF($C$8=1,"",Optimalisation!Y36) -> Y | E26: =IF($C$8=1,"",Optimalisation!Z36) ->  | F26: =IF($C$8=1,"",Optimalisation!AA36) ->  | G26: =IF($C$8=1,"",Optimalisation!AB36) ->  | H26: =IF($C$8=1,"",Optimalisation!X36) -> € 41,969
B27: September | C27: 2026 | D27: =IF($C$8=1,"",Optimalisation!Y37) -> Y | E27: =IF($C$8=1,"",Optimalisation!Z37) ->  | F27: =IF($C$8=1,"",Optimalisation!AA37) ->  | G27: =IF($C$8=1,"",Optimalisation!AB37) ->  | H27: =IF($C$8=1,"",Optimalisation!X37) -> € 40,615
B28: October | C28: 2026 | D28: =IF($C$8=1,"",Optimalisation!Y38) -> Y | E28: =IF($C$8=1,"",Optimalisation!Z38) ->  | F28: =IF($C$8=1,"",Optimalisation!AA38) ->  | G28: =IF($C$8=1,"",Optimalisation!AB38) ->  | H28: =IF($C$8=1,"",Optimalisation!X38) -> € 41,969
B29: November | C29: 2026 | D29: =IF($C$8=1,"",Optimalisation!Y39) -> Y | E29: =IF($C$8=1,"",Optimalisation!Z39) ->  | F29: =IF($C$8=1,"",Optimalisation!AA39) ->  | G29: =IF($C$8=1,"",Optimalisation!AB39) ->  | H29: =IF($C$8=1,"",Optimalisation!X39) -> € 40,615
B30: December | C30: 2026 | D30: =IF($C$8=1,"",Optimalisation!Y40) -> Y | E30: =IF($C$8=1,"",Optimalisation!Z40) ->  | F30: =IF($C$8=1,"",Optimalisation!AA40) ->  | G30: =IF($C$8=1,"",Optimalisation!AB40) ->  | H30: =IF($C$8=1,"",Optimalisation!X40) -> € 41,969
B31: January | C31: =IF($C$8=1,"",YEAR(D$8)+1) -> 2027 | D31: =IF($C$8=1,"",Optimalisation!Y41) ->  | E31: =IF($C$8=1,"",Optimalisation!Z41) ->  | F31: =IF($C$8=1,"",Optimalisation!AA41) ->  | G31: =IF($C$8=1,"",Optimalisation!AB41) ->  | H31: =IF($C$8=1,"",Optimalisation!X41) -> € 0
B32: February | C32: =IF($C$8=1,"",YEAR(D$8)+1) -> 2027 | D32: =IF($C$8=1,"",Optimalisation!Y42) ->  | E32: =IF($C$8=1,"",Optimalisation!Z42) ->  | F32: =IF($C$8=1,"",Optimalisation!AA42) ->  | G32: =IF($C$8=1,"",Optimalisation!AB42) ->  | H32: =IF($C$8=1,"",Optimalisation!X42) -> € 0
B33: March | C33: 2027 | D33: =IF($C$8=1,"",Optimalisation!Y43) ->  | E33: =IF($C$8=1,"",Optimalisation!Z43) ->  | F33: =IF($C$8=1,"",Optimalisation!AA43) ->  | G33: =IF($C$8=1,"",Optimalisation!AB43) ->  | H33: =IF($C$8=1,"",Optimalisation!X43) -> € 0
B34: April | C34: 2027 | D34: =IF($C$8=1,"",Optimalisation!Y44) ->  | E34: =IF($C$8=1,"",Optimalisation!Z44) ->  | F34: =IF($C$8=1,"",Optimalisation!AA44) ->  | G34: =IF($C$8=1,"",Optimalisation!AB44) ->  | H34: =IF($C$8=1,"",Optimalisation!X44) -> € 0
B35: May | C35: 2027 | D35: =IF($C$8=1,"",Optimalisation!Y45) ->  | E35: =IF($C$8=1,"",Optimalisation!Z45) ->  | F35: =IF($C$8=1,"",Optimalisation!AA45) ->  | G35: =IF($C$8=1,"",Optimalisation!AB45) ->  | H35: =IF($C$8=1,"",Optimalisation!X45) -> € 0
B36: June | C36: 2027 | D36: =IF($C$8=1,"",Optimalisation!Y46) ->  | E36: =IF($C$8=1,"",Optimalisation!Z46) ->  | F36: =IF($C$8=1,"",Optimalisation!AA46) ->  | G36: =IF($C$8=1,"",Optimalisation!AB46) ->  | H36: =IF($C$8=1,"",Optimalisation!X46) -> € 0
B37: July | C37: 2027 | D37: =IF($C$8=1,"",Optimalisation!Y47) ->  | E37: =IF($C$8=1,"",Optimalisation!Z47) ->  | F37: =IF($C$8=1,"",Optimalisation!AA47) ->  | G37: =IF($C$8=1,"",Optimalisation!AB47) ->  | H37: =IF($C$8=1,"",Optimalisation!X47) -> € 0
B38: August | C38: 2027 | D38: =IF($C$8=1,"",Optimalisation!Y48) ->  | E38: =IF($C$8=1,"",Optimalisation!Z48) ->  | F38: =IF($C$8=1,"",Optimalisation!AA48) ->  | G38: =IF($C$8=1,"",Optimalisation!AB48) ->  | H38: =IF($C$8=1,"",Optimalisation!X48) -> € 0
B39: September | C39: 2027 | D39: =IF($C$8=1,"",Optimalisation!Y49) ->  | E39: =IF($C$8=1,"",Optimalisation!Z49) ->  | F39: =IF($C$8=1,"",Optimalisation!AA49) ->  | G39: =IF($C$8=1,"",Optimalisation!AB49) ->  | H39: =IF($C$8=1,"",Optimalisation!X49) -> € 0
B40: October | C40: 2027 | D40: =IF($C$8=1,"",Optimalisation!Y50) ->  | E40: =IF($C$8=1,"",Optimalisation!Z50) ->  | F40: =IF($C$8=1,"",Optimalisation!AA50) ->  | G40: =IF($C$8=1,"",Optimalisation!AB50) ->  | H40: =IF($C$8=1,"",Optimalisation!X50) -> € 0
B41: November | C41: 2027 | D41: =IF($C$8=1,"",Optimalisation!Y51) ->  | E41: =IF($C$8=1,"",Optimalisation!Z51) ->  | F41: =IF($C$8=1,"",Optimalisation!AA51) ->  | G41: =IF($C$8=1,"",Optimalisation!AB51) ->  | H41: =IF($C$8=1,"",Optimalisation!X51) -> € 0
B42: December | C42: 2027 | D42: =IF($C$8=1,"",Optimalisation!Y52) ->  | E42: =IF($C$8=1,"",Optimalisation!Z52) ->  | F42: =IF($C$8=1,"",Optimalisation!AA52) ->  | G42: =IF($C$8=1,"",Optimalisation!AB52) ->  | H42: =IF($C$8=1,"",Optimalisation!X52) -> € 0

Sheet Total prices
B4: TOTAL PRICES 2026 FIRM CAPACITY (which is sum of the all-in transmission tariffs and the neutrality charges)
B8: Total prices FIRM capacity for interconnection points | C8: ENTRY REGULAR | I8: ENTRY STORAGE | O8: ENTRY LNG
B9: Payable total prices FIRM capacity for domestic points
C10: Year | D10: Quarter | E10: Month | F10: Day | G10: Within-day | I10: Year | J10: Quarter | K10: Month | L10: Day | M10: Within-day | O10: Year | P10: Quarter | Q10: Month | R10: Day | S10: Within-day
C11: EUR/kWh/h/Y | D11: EUR/kWh/h/Q | E11: EUR/kWh/h/M | F11: EUR/kWh/h/DA | G11: EUR/kWh/h/WID | I11: EUR/kWh/h/Y | J11: EUR/kWh/h/Q | K11: EUR/kWh/h/M | L11: EUR/kWh/h/DA | M11: EUR/kWh/h/WID | O11: EUR/kWh/h/Y | P11: EUR/kWh/h/Q | Q11: EUR/kWh/h/M | R11: EUR/kWh/h/DA | S11: EUR/kWh/h/WID
B13: January | C13: ='Transmission tariffs'!C13+'Neutrality charge'!C13 -> 5.76157135 | D13: ='Transmission tariffs'!D13+'Neutrality charge'!D13 -> 2.63177530 | E13: ='Transmission tariffs'!E13+'Neutrality charge'!E13 -> 1.25882442 | F13: ='Transmission tariffs'!F13+'Neutrality charge'!F13 -> 0.04897731 | G13: ='Transmission tariffs'!G13+'Neutrality charge'!G13 -> 0.00204073 | I13: ='Transmission tariffs'!I13+'Neutrality charge'!I13 -> 1.44039284 | J13: ='Transmission tariffs'!J13+'Neutrality charge'!J13 -> 0.65794382 | K13: ='Transmission tariffs'!K13+'Neutrality charge'!K13 -> 0.31470610 | L13: ='Transmission tariffs'!L13+'Neutrality charge'!L13 -> 0.01224432 | M13: ='Transmission tariffs'!M13+'Neutrality charge'!M13 -> 0.00051019 | O13: ='Transmission tariffs'!O13+'Neutrality charge'!O13 -> 4.60925708 | P13: ='Transmission tariffs'!P13+'Neutrality charge'!P13 -> 2.10542023 | Q13: ='Transmission tariffs'!Q13+'Neutrality charge'!Q13 -> 1.00705953 | R13: ='Transmission tariffs'!R13+'Neutrality charge'!R13 -> 0.03918184 | S13: ='Transmission tariffs'!S13+'Neutrality charge'!S13 -> 0.00163258
B14: February | E14: ='Transmission tariffs'!E14+'Neutrality charge'!E14 -> 1.01634119 | F14: ='Transmission tariffs'!F14+'Neutrality charge'!F14 -> 0.04378400 | G14: ='Transmission tariffs'!G14+'Neutrality charge'!G14 -> 0.00182434 | K14: ='Transmission tariffs'!K14+'Neutrality charge'!K14 -> 0.25408530 | L14: ='Transmission tariffs'!L14+'Neutrality charge'!L14 -> 0.01094600 | M14: ='Transmission tariffs'!M14+'Neutrality charge'!M14 -> 0.00045610 | Q14: ='Transmission tariffs'!Q14+'Neutrality charge'!Q14 -> 0.81307295 | R14: ='Transmission tariffs'!R14+'Neutrality charge'!R14 -> 0.03502719 | S14: ='Transmission tariffs'!S14+'Neutrality charge'!S14 -> 0.00145948
B15: March | E15: ='Transmission tariffs'!E15+'Neutrality charge'!E15 -> 0.88007607 | F15: ='Transmission tariffs'!F15+'Neutrality charge'!F15 -> 0.03422610 | G15: ='Transmission tariffs'!G15+'Neutrality charge'!G15 -> 0.00142610 | K15: ='Transmission tariffs'!K15+'Neutrality charge'!K15 -> 0.22001902 | L15: ='Transmission tariffs'!L15+'Neutrality charge'!L15 -> 0.00855653 | M15: ='Transmission tariffs'!M15+'Neutrality charge'!M15 -> 0.00035653 | Q15: ='Transmission tariffs'!Q15+'Neutrality charge'!Q15 -> 0.70406086 | R15: ='Transmission tariffs'!R15+'Neutrality charge'!R15 -> 0.02738088 | S15: ='Transmission tariffs'!S15+'Neutrality charge'!S15 -> 0.00114088
B16: April | D16: ='Transmission tariffs'!D16+'Neutrality charge'!D16 -> 1.40771762 | E16: ='Transmission tariffs'!E16+'Neutrality charge'!E16 -> 0.63503566 | F16: ='Transmission tariffs'!F16+'Neutrality charge'!F16 -> 0.02552455 | G16: ='Transmission tariffs'!G16+'Neutrality charge'!G16 -> 0.00106353 | J16: ='Transmission tariffs'!J16+'Neutrality charge'!J16 -> 0.35192940 | K16: ='Transmission tariffs'!K16+'Neutrality charge'!K16 -> 0.15875892 | L16: ='Transmission tariffs'!L16+'Neutrality charge'!L16 -> 0.00638114 | M16: ='Transmission tariffs'!M16+'Neutrality charge'!M16 -> 0.00026589 | P16: ='Transmission tariffs'!P16+'Neutrality charge'!P16 -> 1.12617410 | Q16: ='Transmission tariffs'!Q16+'Neutrality charge'!Q16 -> 0.50802853 | R16: ='Transmission tariffs'!R16+'Neutrality charge'!R16 -> 0.02041964 | S16: ='Transmission tariffs'!S16+'Neutrality charge'!S16 -> 0.00085082
B17: May | E17: ='Transmission tariffs'!E17+'Neutrality charge'!E17 -> 0.58133465 | F17: ='Transmission tariffs'!F17+'Neutrality charge'!F17 -> 0.02262403 | G17: ='Transmission tariffs'!G17+'Neutrality charge'!G17 -> 0.00094268 | K17: ='Transmission tariffs'!K17+'Neutrality charge'!K17 -> 0.14533366 | L17: ='Transmission tariffs'!L17+'Neutrality charge'!L17 -> 0.00565601 | M17: ='Transmission tariffs'!M17+'Neutrality charge'!M17 -> 0.00023567 | Q17: ='Transmission tariffs'!Q17+'Neutrality charge'!Q17 -> 0.46506773 | R17: ='Transmission tariffs'!R17+'Neutrality charge'!R17 -> 0.01809922 | S17: ='Transmission tariffs'!S17+'Neutrality charge'!S17 -> 0.00075415
B18: June | E18: ='Transmission tariffs'!E18+'Neutrality charge'!E18 -> 0.47236992 | F18: ='Transmission tariffs'!F18+'Neutrality charge'!F18 -> 0.01900530 | G18: ='Transmission tariffs'!G18+'Neutrality charge'!G18 -> 0.00079190 | K18: ='Transmission tariffs'!K18+'Neutrality charge'!K18 -> 0.11809249 | L18: ='Transmission tariffs'!L18+'Neutrality charge'!L18 -> 0.00475132 | M18: ='Transmission tariffs'!M18+'Neutrality charge'!M18 -> 0.00019798 | Q18: ='Transmission tariffs'!Q18+'Neutrality charge'!Q18 -> 0.37789594 | R18: ='Transmission tariffs'!R18+'Neutrality charge'!R18 -> 0.01520423 | S18: ='Transmission tariffs'!S18+'Neutrality charge'!S18 -> 0.00063352
B19: July | D19: ='Transmission tariffs'!D19+'Neutrality charge'!D19 -> 1.14181716 | E19: ='Transmission tariffs'!E19+'Neutrality charge'!E19 -> 0.46095728 | F19: ='Transmission tariffs'!F19+'Neutrality charge'!F19 -> 0.01792795 | G19: ='Transmission tariffs'!G19+'Neutrality charge'!G19 -> 0.00074701 | J19: ='Transmission tariffs'!J19+'Neutrality charge'!J19 -> 0.28545429 | K19: ='Transmission tariffs'!K19+'Neutrality charge'!K19 -> 0.11523932 | L19: ='Transmission tariffs'!L19+'Neutrality charge'!L19 -> 0.00448199 | M19: ='Transmission tariffs'!M19+'Neutrality charge'!M19 -> 0.00018676 | P19: ='Transmission tariffs'!P19+'Neutrality charge'!P19 -> 0.91345373 | Q19: ='Transmission tariffs'!Q19+'Neutrality charge'!Q19 -> 0.36876582 | R19: ='Transmission tariffs'!R19+'Neutrality charge'!R19 -> 0.01434237 | S19: ='Transmission tariffs'!S19+'Neutrality charge'!S19 -> 0.00059761
B20: August | E20: ='Transmission tariffs'!E20+'Neutrality charge'!E20 -> 0.43820302 | F20: ='Transmission tariffs'!F20+'Neutrality charge'!F20 -> 0.01707161 | G20: ='Transmission tariffs'!G20+'Neutrality charge'!G20 -> 0.00071133 | K20: ='Transmission tariffs'!K20+'Neutrality charge'!K20 -> 0.10955075 | L20: ='Transmission tariffs'!L20+'Neutrality charge'!L20 -> 0.00426791 | M20: ='Transmission tariffs'!M20+'Neutrality charge'!M20 -> 0.00017784 | Q20: ='Transmission tariffs'!Q20+'Neutrality charge'!Q20 -> 0.35056242 | R20: ='Transmission tariffs'!R20+'Neutrality charge'!R20 -> 0.01365729 | S20: ='Transmission tariffs'!S20+'Neutrality charge'!S20 -> 0.00056907
B21: September | E21: ='Transmission tariffs'!E21+'Neutrality charge'!E21 -> 0.47094927 | F21: ='Transmission tariffs'!F21+'Neutrality charge'!F21 -> 0.01895004 | G21: ='Transmission tariffs'!G21+'Neutrality charge'!G21 -> 0.00078960 | K21: ='Transmission tariffs'!K21+'Neutrality charge'!K21 -> 0.11773731 | L21: ='Transmission tariffs'!L21+'Neutrality charge'!L21 -> 0.00473751 | M21: ='Transmission tariffs'!M21+'Neutrality charge'!M21 -> 0.00019741 | Q21: ='Transmission tariffs'!Q21+'Neutrality charge'!Q21 -> 0.37675941 | R21: ='Transmission tariffs'!R21+'Neutrality charge'!R21 -> 0.01516004 | S21: ='Transmission tariffs'!S21+'Neutrality charge'!S21 -> 0.00063168
B22: October | D22: ='Transmission tariffs'!D22+'Neutrality charge'!D22 -> 2.00589501 | E22: ='Transmission tariffs'!E22+'Neutrality charge'!E22 -> 0.55858040 | F22: ='Transmission tariffs'!F22+'Neutrality charge'!F22 -> 0.02174006 | G22: ='Transmission tariffs'!G22+'Neutrality charge'!G22 -> 0.00090585 | J22: ='Transmission tariffs'!J22+'Neutrality charge'!J22 -> 0.50147375 | K22: ='Transmission tariffs'!K22+'Neutrality charge'!K22 -> 0.13964510 | L22: ='Transmission tariffs'!L22+'Neutrality charge'!L22 -> 0.00543502 | M22: ='Transmission tariffs'!M22+'Neutrality charge'!M22 -> 0.00022647 | P22: ='Transmission tariffs'!P22+'Neutrality charge'!P22 -> 1.60471601 | Q22: ='Transmission tariffs'!Q22+'Neutrality charge'!Q22 -> 0.44686431 | R22: ='Transmission tariffs'!R22+'Neutrality charge'!R22 -> 0.01739206 | S22: ='Transmission tariffs'!S22+'Neutrality charge'!S22 -> 0.00072468
B23: November | E23: ='Transmission tariffs'!E23+'Neutrality charge'!E23 -> 0.80267370 | F23: ='Transmission tariffs'!F23+'Neutrality charge'!F23 -> 0.03226480 | G23: ='Transmission tariffs'!G23+'Neutrality charge'!G23 -> 0.00134437 | K23: ='Transmission tariffs'!K23+'Neutrality charge'!K23 -> 0.20066842 | L23: ='Transmission tariffs'!L23+'Neutrality charge'!L23 -> 0.00806620 | M23: ='Transmission tariffs'!M23+'Neutrality charge'!M23 -> 0.00033610 | Q23: ='Transmission tariffs'!Q23+'Neutrality charge'!Q23 -> 0.64213897 | R23: ='Transmission tariffs'!R23+'Neutrality charge'!R23 -> 0.02581184 | S23: ='Transmission tariffs'!S23+'Neutrality charge'!S23 -> 0.00107550
B24: December | E24: ='Transmission tariffs'!E24+'Neutrality charge'!E24 -> 1.04522797 | F24: ='Transmission tariffs'!F24+'Neutrality charge'!F24 -> 0.04066249 | G24: ='Transmission tariffs'!G24+'Neutrality charge'!G24 -> 0.00169428 | K24: ='Transmission tariffs'!K24+'Neutrality charge'!K24 -> 0.26130699 | L24: ='Transmission tariffs'!L24+'Neutrality charge'!L24 -> 0.01016562 | M24: ='Transmission tariffs'!M24+'Neutrality charge'!M24 -> 0.00042358 | Q24: ='Transmission tariffs'!Q24+'Neutrality charge'!Q24 -> 0.83618238 | R24: ='Transmission tariffs'!R24+'Neutrality charge'!R24 -> 0.03252999 | S24: ='Transmission tariffs'!S24+'Neutrality charge'!S24 -> 0.00135542
B26: Total prices FIRM capacity for interconnection points | C26: EXIT NON-STORAGE | I26: EXIT STORAGE
B27: Payable total prices FIRM capacity for domestic points
C28: Year | D28: Quarter | E28: Month | F28: Day | G28: Within-day | I28: Year | J28: Quarter | K28: Month | L28: Day | M28: Within-day
C29: EUR/kWh/h/Y | D29: EUR/kWh/h/Q | E29: EUR/kWh/h/M | F29: EUR/kWh/h/DA | G29: EUR/kWh/h/WID | I29: EUR/kWh/h/Y | J29: EUR/kWh/h/Q | K29: EUR/kWh/h/M | L29: EUR/kWh/h/DA | M29: EUR/kWh/h/WID
B31: January | C31: ='Transmission tariffs'!C31+'Neutrality charge'!C31 -> 4.94149823 | D31: ='Transmission tariffs'!D31+'Neutrality charge'!D31 -> 2.25718162 | E31: ='Transmission tariffs'!E31+'Neutrality charge'!E31 -> 1.07964967 | F31: ='Transmission tariffs'!F31+'Neutrality charge'!F31 -> 0.04200612 | G31: ='Transmission tariffs'!G31+'Neutrality charge'!G31 -> 0.00175026 | I31: ='Transmission tariffs'!I31+'Neutrality charge'!I31 -> 1.23537456 | J31: ='Transmission tariffs'!J31+'Neutrality charge'!J31 -> 0.56429541 | K31: ='Transmission tariffs'!K31+'Neutrality charge'!K31 -> 0.26991242 | L31: ='Transmission tariffs'!L31+'Neutrality charge'!L31 -> 0.01050153 | M31: ='Transmission tariffs'!M31+'Neutrality charge'!M31 -> 0.00043757
B32: February | E32: ='Transmission tariffs'!E32+'Neutrality charge'!E32 -> 0.87168029 | F32: ='Transmission tariffs'!F32+'Neutrality charge'!F32 -> 0.03755200 | G32: ='Transmission tariffs'!G32+'Neutrality charge'!G32 -> 0.00156468 | K32: ='Transmission tariffs'!K32+'Neutrality charge'!K32 -> 0.21792008 | L32: ='Transmission tariffs'!L32+'Neutrality charge'!L32 -> 0.00938801 | M32: ='Transmission tariffs'!M32+'Neutrality charge'!M32 -> 0.00039117
B33: March | E33: ='Transmission tariffs'!E33+'Neutrality charge'!E33 -> 0.75481047 | F33: ='Transmission tariffs'!F33+'Neutrality charge'!F33 -> 0.02935453 | G33: ='Transmission tariffs'!G33+'Neutrality charge'!G33 -> 0.00122312 | K33: ='Transmission tariffs'!K33+'Neutrality charge'!K33 -> 0.18870261 | L33: ='Transmission tariffs'!L33+'Neutrality charge'!L33 -> 0.00733864 | M33: ='Transmission tariffs'!M33+'Neutrality charge'!M33 -> 0.00030579
B34: April | D34: ='Transmission tariffs'!D34+'Neutrality charge'!D34 -> 1.20735017 | E34: ='Transmission tariffs'!E34+'Neutrality charge'!E34 -> 0.54464787 | F34: ='Transmission tariffs'!F34+'Neutrality charge'!F34 -> 0.02189152 | G34: ='Transmission tariffs'!G34+'Neutrality charge'!G34 -> 0.00091216 | J34: ='Transmission tariffs'!J34+'Neutrality charge'!J34 -> 0.30183754 | K34: ='Transmission tariffs'!K34+'Neutrality charge'!K34 -> 0.13616196 | L34: ='Transmission tariffs'!L34+'Neutrality charge'!L34 -> 0.00547288 | M34: ='Transmission tariffs'!M34+'Neutrality charge'!M34 -> 0.00022805
B35: May | E35: ='Transmission tariffs'!E35+'Neutrality charge'!E35 -> 0.49859040 | F35: ='Transmission tariffs'!F35+'Neutrality charge'!F35 -> 0.01940385 | G35: ='Transmission tariffs'!G35+'Neutrality charge'!G35 -> 0.00080851 | K35: ='Transmission tariffs'!K35+'Neutrality charge'!K35 -> 0.12464760 | L35: ='Transmission tariffs'!L35+'Neutrality charge'!L35 -> 0.00485096 | M35: ='Transmission tariffs'!M35+'Neutrality charge'!M35 -> 0.00020214
B36: June | E36: ='Transmission tariffs'!E36+'Neutrality charge'!E36 -> 0.40513516 | F36: ='Transmission tariffs'!F36+'Neutrality charge'!F36 -> 0.01630017 | G36: ='Transmission tariffs'!G36+'Neutrality charge'!G36 -> 0.00067918 | K36: ='Transmission tariffs'!K36+'Neutrality charge'!K36 -> 0.10128379 | L36: ='Transmission tariffs'!L36+'Neutrality charge'!L36 -> 0.00407504 | M36: ='Transmission tariffs'!M36+'Neutrality charge'!M36 -> 0.00016980
B37: July | D37: ='Transmission tariffs'!D37+'Neutrality charge'!D37 -> 0.97929664 | E37: ='Transmission tariffs'!E37+'Neutrality charge'!E37 -> 0.39534693 | F37: ='Transmission tariffs'!F37+'Neutrality charge'!F37 -> 0.01537618 | G37: ='Transmission tariffs'!G37+'Neutrality charge'!G37 -> 0.00064069 | J37: ='Transmission tariffs'!J37+'Neutrality charge'!J37 -> 0.24482416 | K37: ='Transmission tariffs'!K37+'Neutrality charge'!K37 -> 0.09883674 | L37: ='Transmission tariffs'!L37+'Neutrality charge'!L37 -> 0.00384404 | M37: ='Transmission tariffs'!M37+'Neutrality charge'!M37 -> 0.00016018
B38: August | E38: ='Transmission tariffs'!E38+'Neutrality charge'!E38 -> 0.37583140 | F38: ='Transmission tariffs'!F38+'Neutrality charge'!F38 -> 0.01464172 | G38: ='Transmission tariffs'!G38+'Neutrality charge'!G38 -> 0.00061008 | K38: ='Transmission tariffs'!K38+'Neutrality charge'!K38 -> 0.09395785 | L38: ='Transmission tariffs'!L38+'Neutrality charge'!L38 -> 0.00366043 | M38: ='Transmission tariffs'!M38+'Neutrality charge'!M38 -> 0.00015253
B39: September | E39: ='Transmission tariffs'!E39+'Neutrality charge'!E39 -> 0.40391671 | F39: ='Transmission tariffs'!F39+'Neutrality charge'!F39 -> 0.01625280 | G39: ='Transmission tariffs'!G39+'Neutrality charge'!G39 -> 0.00067721 | K39: ='Transmission tariffs'!K39+'Neutrality charge'!K39 -> 0.10097918 | L39: ='Transmission tariffs'!L39+'Neutrality charge'!L39 -> 0.00406319 | M39: ='Transmission tariffs'!M39+'Neutrality charge'!M39 -> 0.00016931
B40: October | D40: ='Transmission tariffs'!D40+'Neutrality charge'!D40 -> 1.72038599 | E40: ='Transmission tariffs'!E40+'Neutrality charge'!E40 -> 0.47907487 | F40: ='Transmission tariffs'!F40+'Neutrality charge'!F40 -> 0.01864570 | G40: ='Transmission tariffs'!G40+'Neutrality charge'!G40 -> 0.00077692 | J40: ='Transmission tariffs'!J40+'Neutrality charge'!J40 -> 0.43009650 | K40: ='Transmission tariffs'!K40+'Neutrality charge'!K40 -> 0.11976871 | L40: ='Transmission tariffs'!L40+'Neutrality charge'!L40 -> 0.00466142 | M40: ='Transmission tariffs'!M40+'Neutrality charge'!M40 -> 0.00019423
B41: November | E41: ='Transmission tariffs'!E41+'Neutrality charge'!E41 -> 0.68842517 | F41: ='Transmission tariffs'!F41+'Neutrality charge'!F41 -> 0.02767239 | G41: ='Transmission tariffs'!G41+'Neutrality charge'!G41 -> 0.00115303 | K41: ='Transmission tariffs'!K41+'Neutrality charge'!K41 -> 0.17210629 | L41: ='Transmission tariffs'!L41+'Neutrality charge'!L41 -> 0.00691810 | M41: ='Transmission tariffs'!M41+'Neutrality charge'!M41 -> 0.00028827
B42: December | E42: ='Transmission tariffs'!E42+'Neutrality charge'!E42 -> 0.89645547 | F42: ='Transmission tariffs'!F42+'Neutrality charge'!F42 -> 0.03487479 | G42: ='Transmission tariffs'!G42+'Neutrality charge'!G42 -> 0.00145313 | K42: ='Transmission tariffs'!K42+'Neutrality charge'!K42 -> 0.22411387 | L42: ='Transmission tariffs'!L42+'Neutrality charge'!L42 -> 0.00871870 | M42: ='Transmission tariffs'!M42+'Neutrality charge'!M42 -> 0.00036329

Sheet Transmission tariffs
B4: ALL-IN TRANSMISSION TARIFFS 2026 (as established by the Dutch regulator ACM)
B6: Tariffs are all rounded to 8 decimals. Within-day prices are rounded up.
B8: Reserve prices FIRM capacity for interconnection points | C8: ENTRY REGULAR | I8: ENTRY STORAGE | O8: ENTRY LNG
B9: Payable prices FIRM capacity for domestic points
C10: Year | D10: Quarter | E10: Month | F10: Day | G10: Within-day | I10: Year | J10: Quarter | K10: Month | L10: Day | M10: Within-day | O10: Year | P10: Quarter | Q10: Month | R10: Day | S10: Within-day
C11: EUR/kWh/h/Y | D11: EUR/kWh/h/Q | E11: EUR/kWh/h/M | F11: EUR/kWh/h/DA | G11: EUR/kWh/h/WID | I11: EUR/kWh/h/Y | J11: EUR/kWh/h/Q | K11: EUR/kWh/h/M | L11: EUR/kWh/h/DA | M11: EUR/kWh/h/WID | O11: EUR/kWh/h/Y | P11: EUR/kWh/h/Q | Q11: EUR/kWh/h/M | R11: EUR/kWh/h/DA | S11: EUR/kWh/h/WID
B13: Januari | C13: 5.71417681 | D13: 2.61012638 | E13: 1.24846936 | F13: 0.04857442 | G13: 0.00202394 | I13: 1.42854420 | J13: 0.65253159 | K13: 0.31211734 | L13: 0.01214360 | M13: 0.00050599 | O13: 4.57134145 | P13: 2.08810110 | Q13: 0.99877548 | R13: 0.03885953 | S13: 0.00161915
B14: Februari | C14: 0.00000000 | D14: 0.00000000 | E14: 1.00798079 | F14: 0.04342383 | G14: 0.00180933 | I14: 0.00000000 | J14: 0.00000000 | K14: 0.25199520 | L14: 0.01085596 | M14: 0.00045234 | O14: 0.00000000 | P14: 0.00000000 | Q14: 0.80638463 | R14: 0.03473906 | S14: 0.00144747
B15: Maart | C15: 0.00000000 | D15: 0.00000000 | E15: 0.87283659 | F15: 0.03394456 | G15: 0.00141436 | I15: 0.00000000 | J15: 0.00000000 | K15: 0.21820915 | L15: 0.00848614 | M15: 0.00035359 | O15: 0.00000000 | P15: 0.00000000 | Q15: 0.69826927 | R15: 0.02715565 | S15: 0.00113149
B16: April | C16: 0.00000000 | D16: 1.39613777 | E16: 0.62981187 | F16: 0.02531459 | G16: 0.00105478 | I16: 0.00000000 | J16: 0.34903444 | K16: 0.15745297 | L16: 0.00632865 | M16: 0.00026370 | O16: 0.00000000 | P16: 1.11691022 | Q16: 0.50384950 | R16: 0.02025167 | S16: 0.00084382
B17: Mei | C17: 0.00000000 | D17: 0.00000000 | E17: 0.57655261 | F17: 0.02243793 | G17: 0.00093492 | I17: 0.00000000 | J17: 0.00000000 | K17: 0.14413815 | L17: 0.00560948 | M17: 0.00023373 | O17: 0.00000000 | P17: 0.00000000 | Q17: 0.46124209 | R17: 0.01795034 | S17: 0.00074794
B18: Juni | C18: 0.00000000 | D18: 0.00000000 | E18: 0.46848422 | F18: 0.01884896 | G18: 0.00078538 | I18: 0.00000000 | J18: 0.00000000 | K18: 0.11712106 | L18: 0.00471224 | M18: 0.00019635 | O18: 0.00000000 | P18: 0.00000000 | Q18: 0.37478738 | R18: 0.01507916 | S18: 0.00062830
B19: Juli | C19: 0.00000000 | D19: 1.13242460 | E19: 0.45716546 | F19: 0.01778048 | G19: 0.00074086 | I19: 0.00000000 | J19: 0.28310615 | K19: 0.11429136 | L19: 0.00444512 | M19: 0.00018522 | O19: 0.00000000 | P19: 0.90593968 | Q19: 0.36573236 | R19: 0.01422439 | S19: 0.00059269
B20: Augustus | C20: 0.00000000 | D20: 0.00000000 | E20: 0.43459837 | F20: 0.01693118 | G20: 0.00070547 | I20: 0.00000000 | J20: 0.00000000 | K20: 0.10864959 | L20: 0.00423280 | M20: 0.00017637 | O20: 0.00000000 | P20: 0.00000000 | Q20: 0.34767870 | R20: 0.01354495 | S20: 0.00056438
B21: September | C21: 0.00000000 | D21: 0.00000000 | E21: 0.46707525 | F21: 0.01879416 | G21: 0.00078310 | I21: 0.00000000 | J21: 0.00000000 | K21: 0.11676881 | L21: 0.00469854 | M21: 0.00019578 | O21: 0.00000000 | P21: 0.00000000 | Q21: 0.37366020 | R21: 0.01503533 | S21: 0.00062648
B22: Oktober | C22: 0.00000000 | D22: 1.98939457 | E22: 0.55398553 | F22: 0.02156123 | G22: 0.00089839 | I22: 0.00000000 | J22: 0.49734864 | K22: 0.13849638 | L22: 0.00539031 | M22: 0.00022460 | O22: 0.00000000 | P22: 1.59151566 | Q22: 0.44318842 | R22: 0.01724899 | S22: 0.00071871
B23: November | C23: 0.00000000 | D23: 0.00000000 | E23: 0.79607093 | F23: 0.03199939 | G23: 0.00133331 | I23: 0.00000000 | J23: 0.00000000 | K23: 0.19901773 | L23: 0.00799985 | M23: 0.00033333 | O23: 0.00000000 | P23: 0.00000000 | Q23: 0.63685675 | R23: 0.02559951 | S23: 0.00106665
B24: December | C24: 0.00000000 | D24: 0.00000000 | E24: 1.03662995 | F24: 0.04032800 | G24: 0.00168034 | I24: 0.00000000 | J24: 0.00000000 | K24: 0.25915749 | L24: 0.01008200 | M24: 0.00042009 | O24: 0.00000000 | P24: 0.00000000 | Q24: 0.82930396 | R24: 0.03226240 | S24: 0.00134427
B26: Reserve prices FIRM capacity for interconnection points | C26: EXIT NON-STORAGE | I26: EXIT STORAGE
B27: Payable prices FIRM capacity for domestic points
C28: Year | D28: Quarter | E28: Month | F28: Day | G28: Within-day | I28: Year | J28: Quarter | K28: Month | L28: Day | M28: Within-day
C29: EUR/kWh/h/Y | D29: EUR/kWh/h/Q | E29: EUR/kWh/h/M | F29: EUR/kWh/h/DA | G29: EUR/kWh/h/WID | I29: EUR/kWh/h/Y | J29: EUR/kWh/h/Q | K29: EUR/kWh/h/M | L29: EUR/kWh/h/DA | M29: EUR/kWh/h/WID
B31: Januari | C31: 4.90084959 | D31: 2.23861410 | E31: 1.07076850 | F31: 0.04166058 | G31: 0.00173586 | I31: 1.22521240 | J31: 0.55965353 | K31: 0.26769213 | L31: 0.01041514 | M31: 0.00043397
B32: Februari | C32: 0.00000000 | D32: 0.00000000 | E32: 0.86450987 | F32: 0.03724310 | G32: 0.00155180 | I32: 0.00000000 | J32: 0.00000000 | K32: 0.21612747 | L32: 0.00931078 | M32: 0.00038795
B33: Maart | C33: 0.00000000 | D33: 0.00000000 | E33: 0.74860142 | F33: 0.02911306 | G33: 0.00121305 | I33: 0.00000000 | J33: 0.00000000 | K33: 0.18715035 | L33: 0.00727827 | M33: 0.00030327
B34: April | C34: 0.00000000 | D34: 1.19741854 | E34: 0.54016761 | F34: 0.02171144 | G34: 0.00090465 | I34: 0.00000000 | J34: 0.29935463 | K34: 0.13504190 | L34: 0.00542786 | M34: 0.00022617
B35: Mei | C35: 0.00000000 | D35: 0.00000000 | E35: 0.49448901 | F35: 0.01924423 | G35: 0.00080185 | I35: 0.00000000 | J35: 0.00000000 | K35: 0.12362225 | L35: 0.00481106 | M35: 0.00020047
B36: Juni | C36: 0.00000000 | D36: 0.00000000 | E36: 0.40180253 | F36: 0.01616609 | G36: 0.00067359 | I36: 0.00000000 | J36: 0.00000000 | K36: 0.10045063 | L36: 0.00404152 | M36: 0.00016840
B37: Juli | C37: 0.00000000 | D37: 0.97124097 | E37: 0.39209482 | F37: 0.01524970 | G37: 0.00063541 | I37: 0.00000000 | J37: 0.24281024 | K37: 0.09802371 | L37: 0.00381242 | M37: 0.00015886
B38: Augustus | C38: 0.00000000 | D38: 0.00000000 | E38: 0.37273982 | F38: 0.01452128 | G38: 0.00060506 | I38: 0.00000000 | J38: 0.00000000 | K38: 0.09318496 | L38: 0.00363032 | M38: 0.00015127
B39: September | C39: 0.00000000 | D39: 0.00000000 | E39: 0.40059410 | F39: 0.01611910 | G39: 0.00067163 | I39: 0.00000000 | J39: 0.00000000 | K39: 0.10014853 | L39: 0.00402977 | M39: 0.00016791
B40: Oktober | C40: 0.00000000 | D40: 1.70623414 | E40: 0.47513401 | F40: 0.01849232 | G40: 0.00077052 | I40: 0.00000000 | J40: 0.42655854 | K40: 0.11878350 | L40: 0.00462308 | M40: 0.00019263
B41: November | C41: 0.00000000 | D41: 0.00000000 | E41: 0.68276220 | F41: 0.02744476 | G41: 0.00114354 | I41: 0.00000000 | J41: 0.00000000 | K41: 0.17069055 | L41: 0.00686119 | M41: 0.00028589
B42: December | C42: 0.00000000 | D42: 0.00000000 | E42: 0.88908125 | F42: 0.03458791 | G42: 0.00144117 | I42: 0.00000000 | J42: 0.00000000 | K42: 0.22227031 | L42: 0.00864698 | M42: 0.00036030

Sheet Neutrality charge
B4: NEUTRALITY CHARGE 2026 (as established by GTS in accordance with calculation methodology as stated in the Transmission Code Gas - TSO)
B6: Charges are all rounded to 8 decimals. Within-day prices are rounded up.
B8: Charge FIRM capacity for interconnection points | C8: ENTRY REGULAR | I8: ENTRY STORAGE | O8: ENTRY LNG
B9: Payable charge FIRM capacity for domestic points
C10: Year | D10: Quarter | E10: Month | F10: Day | G10: Within-day | I10: Year | J10: Quarter | K10: Month | L10: Day | M10: Within-day | O10: Year | P10: Quarter | Q10: Month | R10: Day | S10: Within-day
C11: EUR/kWh/h/Y | D11: EUR/kWh/h/Q | E11: EUR/kWh/h/M | F11: EUR/kWh/h/DA | G11: EUR/kWh/h/WID | I11: EUR/kWh/h/Y | J11: EUR/kWh/h/Q | K11: EUR/kWh/h/M | L11: EUR/kWh/h/DA | M11: EUR/kWh/h/WID | O11: EUR/kWh/h/Y | P11: EUR/kWh/h/Q | Q11: EUR/kWh/h/M | R11: EUR/kWh/h/DA | S11: EUR/kWh/h/WID
B13: Januari | C13: 0.04739454 | D13: 0.02164892 | E13: 0.01035506 | F13: 0.00040289 | G13: 0.00001679 | I13: 0.01184864 | J13: 0.00541223 | K13: 0.00258876 | L13: 0.00010072 | M13: 0.00000420 | O13: 0.03791563 | P13: 0.01731913 | Q13: 0.00828405 | R13: 0.00032231 | S13: 0.00001343
B14: Februari | E14: 0.00836040 | F14: 0.00036017 | G14: 0.00001501 | K14: 0.00209010 | L14: 0.00009004 | M14: 0.00000376 | Q14: 0.00668832 | R14: 0.00028813 | S14: 0.00001201
B15: Maart | E15: 0.00723948 | F15: 0.00028154 | G15: 0.00001174 | K15: 0.00180987 | L15: 0.00007039 | M15: 0.00000294 | Q15: 0.00579159 | R15: 0.00022523 | S15: 0.00000939
B16: April | D16: 0.01157985 | E16: 0.00522379 | F16: 0.00020996 | G16: 0.00000875 | J16: 0.00289496 | K16: 0.00130595 | L16: 0.00005249 | M16: 0.00000219 | P16: 0.00926388 | Q16: 0.00417903 | R16: 0.00016797 | S16: 0.00000700
B17: Mei | E17: 0.00478204 | F17: 0.00018610 | G17: 0.00000776 | K17: 0.00119551 | L17: 0.00004653 | M17: 0.00000194 | Q17: 0.00382564 | R17: 0.00014888 | S17: 0.00000621
B18: Juni | E18: 0.00388570 | F18: 0.00015634 | G18: 0.00000652 | K18: 0.00097143 | L18: 0.00003908 | M18: 0.00000163 | Q18: 0.00310856 | R18: 0.00012507 | S18: 0.00000522
B19: Juli | D19: 0.00939256 | E19: 0.00379182 | F19: 0.00014747 | G19: 0.00000615 | J19: 0.00234814 | K19: 0.00094796 | L19: 0.00003687 | M19: 0.00000154 | P19: 0.00751405 | Q19: 0.00303346 | R19: 0.00011798 | S19: 0.00000492
B20: Augustus | E20: 0.00360465 | F20: 0.00014043 | G20: 0.00000586 | K20: 0.00090116 | L20: 0.00003511 | M20: 0.00000147 | Q20: 0.00288372 | R20: 0.00011234 | S20: 0.00000469
B21: September | E21: 0.00387402 | F21: 0.00015588 | G21: 0.00000650 | K21: 0.00096850 | L21: 0.00003897 | M21: 0.00000163 | Q21: 0.00309921 | R21: 0.00012471 | S21: 0.00000520
B22: Oktober | D22: 0.01650044 | E22: 0.00459487 | F22: 0.00017883 | G22: 0.00000746 | J22: 0.00412511 | K22: 0.00114872 | L22: 0.00004471 | M22: 0.00000187 | P22: 0.01320035 | Q22: 0.00367589 | R22: 0.00014307 | S22: 0.00000597
B23: November | E23: 0.00660277 | F23: 0.00026541 | G23: 0.00001106 | K23: 0.00165069 | L23: 0.00006635 | M23: 0.00000277 | Q23: 0.00528222 | R23: 0.00021233 | S23: 0.00000885
B24: December | E24: 0.00859802 | F24: 0.00033449 | G24: 0.00001394 | K24: 0.00214950 | L24: 0.00008362 | M24: 0.00000349 | Q24: 0.00687842 | R24: 0.00026759 | S24: 0.00001115
B26: Charge FIRM capacity for interconnection points | C26: EXIT NON-STORAGE | I26: EXIT STORAGE
B27: Payable charge FIRM capacity for domestic points
C28: Year | D28: Quarter | E28: Month | F28: Day | G28: Within-day | I28: Year | J28: Quarter | K28: Month | L28: Day | M28: Within-day
C29: EUR/kWh/h/Y | D29: EUR/kWh/h/Q | E29: EUR/kWh/h/M | F29: EUR/kWh/h/DA | G29: EUR/kWh/h/WID | I29: EUR/kWh/h/Y | J29: EUR/kWh/h/Q | K29: EUR/kWh/h/M | L29: EUR/kWh/h/DA | M29: EUR/kWh/h/WID
B31: Januari | C31: 0.04064864 | D31: 0.01856752 | E31: 0.00888117 | F31: 0.00034554 | G31: 0.00001440 | I31: 0.01016216 | J31: 0.00464188 | K31: 0.00222029 | L31: 0.00008639 | M31: 0.00000360
B32: Februari | E32: 0.00717042 | F32: 0.00030890 | G32: 0.00001288 | K32: 0.00179261 | L32: 0.00007723 | M32: 0.00000322
B33: Maart | E33: 0.00620905 | F33: 0.00024147 | G33: 0.00001007 | K33: 0.00155226 | L33: 0.00006037 | M33: 0.00000252
B34: April | D34: 0.00993163 | E34: 0.00448026 | F34: 0.00018008 | G34: 0.00000751 | J34: 0.00248291 | K34: 0.00112006 | L34: 0.00004502 | M34: 0.00000188
B35: Mei | E35: 0.00410139 | F35: 0.00015962 | G35: 0.00000666 | K35: 0.00102535 | L35: 0.00003990 | M35: 0.00000167
B36: Juni | E36: 0.00333263 | F36: 0.00013408 | G36: 0.00000559 | K36: 0.00083316 | L36: 0.00003352 | M36: 0.00000140
B37: Juli | D37: 0.00805567 | E37: 0.00325211 | F37: 0.00012648 | G37: 0.00000528 | J37: 0.00201392 | K37: 0.00081303 | L37: 0.00003162 | M37: 0.00000132
B38: Augustus | E38: 0.00309158 | F38: 0.00012044 | G38: 0.00000502 | K38: 0.00077289 | L38: 0.00003011 | M38: 0.00000126
B39: September | E39: 0.00332261 | F39: 0.00013370 | G39: 0.00000558 | K39: 0.00083065 | L39: 0.00003342 | M39: 0.00000140
B40: Oktober | D40: 0.01415185 | E40: 0.00394086 | F40: 0.00015338 | G40: 0.00000640 | J40: 0.00353796 | K40: 0.00098521 | L40: 0.00003834 | M40: 0.00000160
B41: November | E41: 0.00566297 | F41: 0.00022763 | G41: 0.00000949 | K41: 0.00141574 | L41: 0.00005691 | M41: 0.00000238
B42: December | E42: 0.00737422 | F42: 0.00028688 | G42: 0.00001196 | K42: 0.00184356 | L42: 0.00007172 | M42: 0.00000299

Sheet Optimalisation (hidden)
B4: COLLECTING DATA FOR OPTIMALISATION
B6: Helping cell: row number | C6: Numbers of months applicable | D6: Month number | E6: Final month | F6: Year | G6: Month name | H6: Helping cell: code Y&M | I6: Days per month in desired period
L7: date | M7: year | N7: quarter | O7: month | P7: day
B8: 0 | D8: =O8 -> 1 | F8: =M8 -> 2026 | G8: =IF(D8="",D8,INDEX(C$60:C$71,$D8,1)) -> January | H8: =CONCATENATE(F8,G8) -> 2026January | I8: =P19 -> 31 | K8: Start date | L8: ='Period booking'!D8 -> 2026-01-01 | M8: =YEAR(L8) -> 2026 | N8: n.a. | O8: =MONTH(L8) -> 1 | P8: =DAY(L8) -> 1
B9: =B8+1 -> 1 | C9: =IF(B9>P$18,"",B9) -> 1 | D9: =IF($C9="",$C9,IF($D8+1=13,1,IF($D8+1>13,$D8+1-12,$D8+1))) -> 2 | E9: =IF(AND(D10="",D9<>""),"END","") ->  | F9: =IF(D9="","",IF(AND($D9>$D8,$F8<$M$9),$M$8,$M$9)) -> 2026 | G9: =IF(D9="",D9,INDEX(C$60:C$71,D9,1)) -> February | H9: 2026February | I9: =IF($E9="END",$P$9,IF($D9="","",VLOOKUP($H9,$D$60:$I$83,5,FALSE))) -> 28 | K9: End date | L9: ='Period booking'!D9 -> 2026-12-31 | M9: =YEAR(L9) -> 2026 | N9: n.a. | O9: =MONTH(L9) -> 12 | P9: =DAY(L9) -> 31
B10: 2 | C10: 2 | D10: 3 | F10: 2026 | G10: March | H10: 2026March | I10: 31
B11: 3 | C11: 3 | D11: 4 | F11: 2026 | G11: April | H11: 2026April | I11: 30 | K11: Capacity | O11: kWh/h | P11: ='Period booking'!D11 -> 100,000
B12: 4 | C12: 4 | D12: 5 | F12: 2026 | G12: May | H12: 2026May | I12: 31 | K12: Applicable yearly reserve price | O12: EUR/kWh/h/y | P12: =K60 -> 4.9415
B13: 5 | C13: 5 | D13: 6 | F13: 2026 | G13: June | H13: 2026June | I13: 30 | K13: Payable amount in case of yearly (flat) booking | O13: EUR/y | P13: =P11*P12 -> 494,150
B14: 6 | C14: 6 | D14: 7 | F14: 2026 | G14: July | H14: 2026July | I14: 31 | K14: Payable amount after optimalisation | O14: EUR/y | P14: =X53 -> 494,150
B15: 7 | C15: 7 | D15: 8 | F15: 2026 | G15: August | H15: 2026August | I15: 31 | K15: Optimisation to yearly booking? | P15: =IF(P13<P14,"Yes", "No") -> No
B16: 8 | C16: 8 | D16: 9 | F16: 2026 | G16: September | H16: 2026September | I16: 30
B17: 9 | C17: 9 | D17: 10 | F17: 2026 | G17: October | H17: 2026October | I17: 31 | K17: Check same month: | P17: =IF(AND(M8=M9,O8=O9),"ZELFDEMAAND","No") -> No
B18: 10 | C18: 10 | D18: 11 | F18: 2026 | G18: November | H18: 2026November | I18: 30 | K18: Number of months involved after starting month: | P18: =IF(($O$9-$O$8)>0,($O$9-$O$8),IF(($O$9-$O$8)<0,IF($P$8=1,12+($O$9-$O$8),12+($O$9-$O$8)),IF($M$9=$M$8,0,13))) -> 11
B19: 11 | C19: 11 | D19: 12 | E19: END | F19: 2026 | G19: December | H19: 2026December | I19: 31 | K19: Number of days involved in starting month | P19: =IF(P$17="ZELFDEMAAND",$P$9-$P$8+1,_xlfn.DAYS(EOMONTH($L$8,0),$L$8)+1) -> 31
B20: 12
B23: OPTIMISATION FOR DESIRED PERIOD BOOKING INTO NON-YEARLY CAPACITY PRODUCTS
Y25: Optimised non-yearly product
B26: Helping cell: row number | C26: Year | D26: Month | E26: Helping cell: code Y&M | F26: Month number | G26: Days per month in desired period | H26: Days in month | I26: Quarter number | J26: Days in quarter | K26: Days in year | L26: Reserve price for daily products | M26: Reserve price for monthly products | N26: Reserve price for quarterly products | O26: Reserve price for a yearly product | P26: Optimisation 2.1.2. (c) | R26: Optimisation 2.1.2. (b) | T26: Optimisation 2.1.2. (a) | W26: Optimised period booking | Y26: Year | Z26: Quarter | AA26: Month | AB26: Day-ahead
L27: EUR/month | M27: EUR/month | N27: EUR/quarter | O27: EUR/year | P27: MIN (D vs M) | Q27: EUR/month | R27: MIN (D;M vs Q) | S27: EUR/month | T27: MIN (D;M;Q vs Y) | U27: correction yearly product | V27: EUR/month | W27: Product type | X27: EUR/month
U28: =IF($T$53=12,IF($T28="Y",$T28,""),IF($T$53=13,IF($T28="","",IF(OR(AND($T28="Y",$T27=""),AND($T28="Y",$T29="")),IF($S28<$S40,$P28,IF(COUNTIF($U27:$U$29,"Y")=12,$P27)),"Y")),IF($T$53=11,IF(OR(AND($T28="",$T27="Y"),AND($T28="",$T29="Y")),"?",IF($T28="Y",$T28,"")),""))) -> 
B29: 1 | C29: =M$8 -> 2026 | D29: January | E29: =CONCATENATE(C29,D29) -> 2026January | F29: 1 | G29: =_xlfn.IFNA(VLOOKUP(E29,H$8:I$20,2,FALSE),0) -> 31 | H29: =INDEX($B$60:$J$83,$B29,7) -> 31 | I29: =INDEX($B$60:$J$83,$B29,6) -> 1 | J29: =INDEX($B$60:$J$83,$B29,8) -> 90 | K29: =IF(U29="Y",SUMIF($U$29:$U$52,"Y",$H$29:$H$52),"") -> 365 | L29: =N60*G29 -> € 1.302 | M29: =IF($G29<>0,M60,0) -> € 1.080 | N29: =IF($G29<>0,L60,0) -> € 2.257 | O29: =IF($G29<>0,K60,0) -> € 4.941 | P29: =IF($G29<>0,IF(L29<M29,"D", "M"),"") -> M | Q29: =IF(P29="D",L29,M29) -> € 1.080 | R29: =IF($G29=0,"",IF($I29<>$I28,IF(SUM($Q29:$Q31)>=$N29,"Q",""),IF($R28="Q","Q",""))) -> Q | S29: =IF($R29="Q",$N29*$H29/$J29,$Q29) -> € 0.777 | T29: =IF($G29=0,"",IF(SUM($S29:$S40)>=$O29,"Y",IF($T28="Y","Y",""))) -> Y | U29: =IF($T$53=12,IF($T29="Y",$T29,""),IF($T$53=13,IF($T29="","",IF(AND($T29="Y",$T28=""),IF($S29<$S41,$P29,"Y"),IF(AND($T29="Y",$T30=""),IF($S29<$S17,$P29,"Y"),"Y"))),IF($T$53=11,IF(OR(AND($T29="",$T28="Y"),AND($T29="",$T30="Y")),"?",IF($T29="Y",$T29,"")),IF($T$53=10,IF(OR(AND($T29="",$T28="Y"),AND($T29="",$T30="Y"),AND($T29="",$T28="",$T27="Y"),AND($T29="",$T30="",$T31="Y")),"?",IF($T29="Y",$T29,"")),IF($T$53=9,IF(OR(AND($T29="",$T28="Y"),AND($T29="",$T30="Y"),AND($T29="",$T28="",$T27="Y"),AND($T29="",$T30="",$T31="Y"),AND($T29="",$T28="",$T27="",$T26="Y"),AND($T29="",$T30="",$T31="",$T32="Y")),"?",IF($T29="Y",$T29,"")),""))))) -> Y | V29: =IF($U29="",0,IF($T$53=11,"no 12th month in yearly booking",IF($T$53=10,"no 11th and 12th month in yearly booking",IF($T$53=9,"no 10th, 11th and 12th month in yearly booking",IF($U29="Y",$O29*$H29/$K29,$S29))))) -> € 0.420 | W29: =IF(AND($G29=0,$U29=""),"",IF(OR($U29="Y",$U29="?"),$U29,IF($R29="Q",$R29,$P29))) -> Y | X29: =IFERROR(IF(AND($G29=0,$U29=""),"",IF(OR($U29="Y",$U29="?"),$V29,IF($R29="Q",$S29,$Q29)))*$P$11,$V29) -> € 41,969 | Y29: =IF($W29="Y","Y",IF($W29="?",$W29,"")) -> Y | Z29: =IF($W29="Q","Q"&$I29,"") ->  | AA29: =IF($W29="M","M"&$F29,"") ->  | AB29: =IF($W29="D",$G29,"") -> 
B30: =B29+1 -> 2 | C30: 2026 | D30: February | E30: 2026February | F30: 2 | G30: =_xlfn.IFNA(VLOOKUP(E30,H$8:I$20,2,FALSE),0) -> 28 | H30: =INDEX($B$60:$J$83,$B30,7) -> 28 | I30: =INDEX($B$60:$J$83,$B30,6) -> 1 | J30: =INDEX($B$60:$J$83,$B30,8) -> 90 | K30: =IF(U30="Y",SUMIF($U$29:$U$52,"Y",$H$29:$H$52),"") -> 365 | L30: € 1.051 | M30: € 0.872 | N30: € 2.257 | O30: € 4.941 | P30: =IF($G30<>0,IF(L30<M30,"D", "M"),"") -> M | Q30: =IF(P30="D",L30,M30) -> € 0.872 | R30: =IF($G30=0,"",IF($I30<>$I29,IF(SUM($Q30:$Q32)>=$N30,"Q",""),IF($R29="Q","Q",""))) -> Q | S30: =IF($R30="Q",$N30*$H30/$J30,$Q30) -> € 0.702 | T30: =IF($G30=0,"",IF(SUM($S30:$S41)>=$O30,"Y",IF($T29="Y","Y",""))) -> Y | U30: Y | V30: € 0.379 | W30: Y | X30: =IFERROR(IF(AND($G30=0,$U30=""),"",IF(OR($U30="Y",$U30="?"),$V30,IF($R30="Q",$S30,$Q30)))*$P$11,$V30) -> € 37,907 | Y30: =IF($W30="Y","Y",IF($W30="?",$W30,"")) -> Y
B31: 3 | C31: 2026 | D31: March | E31: 2026March | F31: 3 | G31: 31 | H31: 31 | I31: =INDEX($B$60:$J$83,$B31,6) -> 1 | J31: 90 | K31: 365 | L31: € 0.910 | M31: € 0.755 | N31: € 2.257 | O31: € 4.941 | P31: M | Q31: =IF(P31="D",L31,M31) -> € 0.755 | R31: Q | S31: =IF($R31="Q",$N31*$H31/$J31,$Q31) -> € 0.777 | T31: =IF($G31=0,"",IF(SUM($S31:$S42)>=$O31,"Y",IF($T30="Y","Y",""))) -> Y | U31: Y | V31: € 0.420 | W31: Y | X31: € 41,969 | Y31: Y
B32: 4 | C32: 2026 | D32: April | E32: 2026April | F32: 4 | G32: 30 | H32: 30 | I32: 2 | J32: 91 | K32: 365 | L32: € 0.657 | M32: € 0.545 | N32: € 1.207 | O32: € 4.941 | P32: M | Q32: =IF(P32="D",L32,M32) -> € 0.545 | R32: Q | S32: =IF($R32="Q",$N32*$H32/$J32,$Q32) -> € 0.398 | T32: =IF($G32=0,"",IF(SUM($S32:$S43)>=$O32,"Y",IF($T31="Y","Y",""))) -> Y | U32: Y | V32: € 0.406 | W32: Y | X32: € 40,615 | Y32: Y
B33: 5 | C33: 2026 | D33: May | E33: 2026May | F33: 5 | G33: 31 | H33: 31 | I33: 2 | J33: 91 | K33: =IF(U33="Y",SUMIF($U$29:$U$52,"Y",$H$29:$H$52),"") -> 365 | L33: € 0.602 | M33: € 0.499 | N33: € 1.207 | O33: € 4.941 | P33: M | Q33: =IF(P33="D",L33,M33) -> € 0.499 | R33: Q | S33: =IF($R33="Q",$N33*$H33/$J33,$Q33) -> € 0.411 | T33: =IF($G33=0,"",IF(SUM($S33:$S44)>=$O33,"Y",IF($T32="Y","Y",""))) -> Y | U33: Y | V33: € 0.420 | W33: Y | X33: € 41,969 | Y33: =IF($W33="Y","Y",IF($W33="?",$W33,"")) -> Y
B34: 6 | C34: 2026 | D34: June | E34: 2026June | F34: 6 | G34: 30 | H34: 30 | I34: 2 | J34: 91 | K34: =IF(U34="Y",SUMIF($U$29:$U$52,"Y",$H$29:$H$52),"") -> 365 | L34: € 0.489 | M34: € 0.405 | N34: € 1.207 | O34: € 4.941 | P34: M | Q34: € 0.405 | R34: Q | S34: =IF($R34="Q",$N34*$H34/$J34,$Q34) -> € 0.398 | T34: =IF($G34=0,"",IF(SUM($S34:$S45)>=$O34,"Y",IF($T33="Y","Y",""))) -> Y | U34: Y | V34: € 0.406 | W34: =IF(AND($G34=0,$U34=""),"",IF(OR($U34="Y",$U34="?"),$U34,IF($R34="Q",$R34,$P34))) -> Y | X34: € 40,615 | Y34: Y
B35: 7 | C35: 2026 | D35: July | E35: 2026July | F35: 7 | G35: 31 | H35: 31 | I35: 3 | J35: 92 | K35: 365 | L35: € 0.477 | M35: € 0.395 | N35: € 0.979 | O35: € 4.941 | P35: M | Q35: =IF(P35="D",L35,M35) -> € 0.395 | R35: Q | S35: € 0.330 | T35: =IF($G35=0,"",IF(SUM($S35:$S46)>=$O35,"Y",IF($T34="Y","Y",""))) -> Y | U35: Y | V35: € 0.420 | W35: =IF(AND($G35=0,$U35=""),"",IF(OR($U35="Y",$U35="?"),$U35,IF($R35="Q",$R35,$P35))) -> Y | X35: € 41,969 | Y35: Y
B36: 8 | C36: 2026 | D36: August | E36: 2026August | F36: 8 | G36: 31 | H36: 31 | I36: 3 | J36: 92 | K36: 365 | L36: € 0.454 | M36: € 0.376 | N36: € 0.979 | O36: € 4.941 | P36: M | Q36: € 0.376 | R36: Q | S36: € 0.330 | T36: =IF($G36=0,"",IF(SUM($S36:$S47)>=$O36,"Y",IF($T35="Y","Y",""))) -> Y | U36: Y | V36: € 0.420 | W36: =IF(AND($G36=0,$U36=""),"",IF(OR($U36="Y",$U36="?"),$U36,IF($R36="Q",$R36,$P36))) -> Y | X36: € 41,969 | Y36: Y
B37: 9 | C37: 2026 | D37: September | E37: 2026September | F37: 9 | G37: 30 | H37: 30 | I37: 3 | J37: 92 | K37: 365 | L37: € 0.488 | M37: € 0.404 | N37: € 0.979 | O37: € 4.941 | P37: M | Q37: € 0.404 | R37: Q | S37: € 0.319 | T37: Y | U37: Y | V37: € 0.406 | W37: Y | X37: € 40,615 | Y37: Y
B38: 10 | C38: 2026 | D38: October | E38: 2026October | F38: 10 | G38: 31 | H38: 31 | I38: 4 | J38: 92 | K38: 365 | L38: € 0.578 | M38: € 0.479 | N38: € 1.720 | O38: € 4.941 | P38: M | Q38: € 0.479 | R38: Q | S38: € 0.580 | T38: Y | U38: Y | V38: € 0.420 | W38: Y | X38: € 41,969 | Y38: Y
B39: 11 | C39: 2026 | D39: November | E39: 2026November | F39: 11 | G39: 30 | H39: 30 | I39: 4 | J39: 92 | K39: 365 | L39: € 0.830 | M39: € 0.688 | N39: € 1.720 | O39: € 4.941 | P39: M | Q39: € 0.688 | R39: Q | S39: € 0.561 | T39: Y | U39: Y | V39: € 0.406 | W39: Y | X39: € 40,615 | Y39: Y
B40: 12 | C40: 2026 | D40: December | E40: 2026December | F40: 12 | G40: 31 | H40: 31 | I40: 4 | J40: 92 | K40: 365 | L40: € 1.081 | M40: € 0.896 | N40: € 1.720 | O40: € 4.941 | P40: M | Q40: € 0.896 | R40: Q | S40: € 0.580 | T40: Y | U40: Y | V40: € 0.420 | W40: Y | X40: € 41,969 | Y40: Y
B41: 13 | C41: =YEAR(L$8+366) -> 2027 | D41: January | E41: 2027January | F41: 1 | G41: 0 | H41: 31 | I41: =INDEX($B$60:$J$83,$B41,6) -> 1 | J41: 90 | L41: 0 | M41: 0 | N41: 0 | O41: 0 | Q41: 0 | S41: 0 | V41: 0 | X41: 0
B42: =B41+1 -> 14 | C42: 2027 | D42: February | E42: 2027February | F42: 2 | G42: 0 | H42: 28 | I42: =INDEX($B$60:$J$83,$B42,6) -> 1 | J42: 90 | L42: 0 | M42: 0 | N42: 0 | O42: 0 | Q42: 0 | S42: 0 | V42: 0 | X42: 0
B43: 15 | C43: 2027 | D43: March | E43: 2027March | F43: 3 | G43: 0 | H43: 31 | I43: =INDEX($B$60:$J$83,$B43,6) -> 1 | J43: 90 | L43: 0 | M43: 0 | N43: 0 | O43: 0 | Q43: 0 | S43: 0 | V43: 0 | X43: 0
B44: 16 | C44: 2027 | D44: April | E44: 2027April | F44: 4 | G44: 0 | H44: 30 | I44: 2 | J44: 91 | L44: 0 | M44: 0 | N44: 0 | O44: 0 | Q44: 0 | S44: 0 | T44: =IF($G44=0,"",IF(SUM($S44:$S55)>=$O44,"Y",IF($T43="Y","Y",""))) ->  | V44: 0 | X44: 0
B45: 17 | C45: 2027 | D45: May | E45: 2027May | F45: 5 | G45: 0 | H45: 31 | I45: 2 | J45: 91 | L45: 0 | M45: 0 | N45: 0 | O45: 0 | Q45: 0 | S45: 0 | V45: 0 | X45: 0
B46: 18 | C46: 2027 | D46: June | E46: 2027June | F46: 6 | G46: 0 | H46: 30 | I46: 2 | J46: 91 | L46: 0 | M46: 0 | N46: 0 | O46: 0 | Q46: 0 | S46: 0 | V46: 0 | X46: 0
B47: 19 | C47: 2027 | D47: July | E47: 2027July | F47: 7 | G47: 0 | H47: 31 | I47: 3 | J47: 92 | L47: 0 | M47: 0 | N47: 0 | O47: 0 | Q47: 0 | S47: 0 | V47: 0 | X47: 0
B48: 20 | C48: 2027 | D48: August | E48: 2027August | F48: 8 | G48: 0 | H48: 31 | I48: 3 | J48: 92 | L48: 0 | M48: 0 | N48: 0 | O48: 0 | Q48: 0 | S48: 0 | V48: 0 | X48: 0
B49: 21 | C49: 2027 | D49: September | E49: 2027September | F49: 9 | G49: 0 | H49: 30 | I49: 3 | J49: 92 | L49: 0 | M49: 0 | N49: 0 | O49: 0 | Q49: 0 | S49: 0 | V49: 0 | X49: 0
B50: 22 | C50: 2027 | D50: October | E50: 2027October | F50: 10 | G50: 0 | H50: 31 | I50: 4 | J50: 92 | L50: 0 | M50: 0 | N50: 0 | O50: 0 | Q50: 0 | S50: 0 | V50: 0 | X50: 0
B51: 23 | C51: 2027 | D51: November | E51: 2027November | F51: 11 | G51: 0 | H51: 30 | I51: 4 | J51: 92 | L51: 0 | M51: 0 | N51: 0 | O51: 0 | Q51: 0 | S51: 0 | V51: 0 | X51: 0
B52: 24 | C52: 2027 | D52: December | E52: 2027December | F52: 12 | G52: 0 | H52: 31 | I52: 4 | J52: 92 | L52: 0 | M52: 0 | N52: 0 | O52: 0 | Q52: 0 | S52: 0 | V52: 0 | X52: 0
T53: =COUNTIF($T$29:$T$52,"Y") -> 12 | X53: =SUM(X29:X52) -> € 494,150
B55: HELPING TABLE: COLLECTING DATES, NUMBER OF DAYS IN MONTH AND QUARTER AND RESERVE PRICES
F57: DATE INFORMATION | K57: RESERVE PRICES
B59: Year | C59: Month | D59: Helping cell: code Y&M | F59: Month number | G59: Quarter number | H59: Number of days in month | I59: Number of days in quarter | K59: Year | L59: Quarter | M59: Month | N59: Day
B60: =M$8 -> 2026 | C60: January | D60: =CONCATENATE(B60,C60) -> 2026January | F60: 1 | G60: 1 | H60: =DAY(EOMONTH(DATE(B60,F60,1),0)) -> 31 | I60: =IF(G60<>G59,SUM(H60:H62),I59) -> 90 | K60: =IF('Period booking'!$D$10="Exit storage",INDEX(exitstorage,1,1),IF('Period booking'!$D$10="Exit non-storage",INDEX(exit,1,1),IF('Period booking'!$D$10="Entry storage",INDEX(entrystorage,1,1),IF('Period booking'!$D$10="Entry Regular",INDEX(entry,1,1),IF('Period booking'!$D$10="Entry LNG",INDEX(entryLNG,1,1)))))) -> 4.94149823 | L60: =IF('Period booking'!$D$10="Exit storage",INDEX(exitstorage,$G60,2),IF('Period booking'!$D$10="Exit non-storage",INDEX(exit,$G60,2),IF('Period booking'!$D$10="Entry storage",INDEX(entrystorage,$G60,2),IF('Period booking'!$D$10="Entry Regular",INDEX(entry,$G60,2),IF('Period booking'!$D$10="Entry LNG",INDEX(entryLNG,$G60,2)))))) -> 2.25718162 | M60: =IF('Period booking'!$D$10="Exit storage",INDEX(exitstorage,$F60,3),IF('Period booking'!$D$10="Exit non-storage",INDEX(exit,$F60,3),IF('Period booking'!$D$10="Entry storage",INDEX(entrystorage,$F60,3),IF('Period booking'!$D$10="Entry Regular",INDEX(entry,$F60,3),IF('Period booking'!$D$10="Entry LNG",INDEX(entryLNG,$F60,3)))))) -> 1.07964967 | N60: =IF('Period booking'!$D$10="Exit storage",INDEX(exitstorage,$F60,4),IF('Period booking'!$D$10="Exit non-storage",INDEX(exit,$F60,4),IF('Period booking'!$D$10="Entry storage",INDEX(entrystorage,$F60,4),IF('Period booking'!$D$10="Entry Regular",INDEX(entry,$F60,4),IF('Period booking'!$D$10="Entry non-storage",INDEX(entry,1,1),IF('Period booking'!$D$10="Entry LNG",INDEX(entryLNG,$F60,4))))))) -> 0.04200612
B61: 2026 | C61: February | D61: =CONCATENATE(B61,C61) -> 2026February | F61: 2 | G61: 1 | H61: =DAY(EOMONTH(DATE(B61,F61,1),0)) -> 28 | I61: =IF(G61<>G60,SUM(H61:H63),I60) -> 90 | K61: =IF('Period booking'!$D$10="Exit storage",INDEX(exitstorage,1,1),IF('Period booking'!$D$10="Exit non-storage",INDEX(exit,1,1),IF('Period booking'!$D$10="Entry storage",INDEX(entrystorage,1,1),IF('Period booking'!$D$10="Entry Regular",INDEX(entry,1,1),IF('Period booking'!$D$10="Entry LNG",INDEX(entryLNG,1,1)))))) -> 4.94149823 | L61: =IF('Period booking'!$D$10="Exit storage",INDEX(exitstorage,$G61,2),IF('Period booking'!$D$10="Exit non-storage",INDEX(exit,$G61,2),IF('Period booking'!$D$10="Entry storage",INDEX(entrystorage,$G61,2),IF('Period booking'!$D$10="Entry Regular",INDEX(entry,$G61,2),IF('Period booking'!$D$10="Entry LNG",INDEX(entryLNG,$G61,2)))))) -> 2.25718162 | M61: =IF('Period booking'!$D$10="Exit storage",INDEX(exitstorage,$F61,3),IF('Period booking'!$D$10="Exit non-storage",INDEX(exit,$F61,3),IF('Period booking'!$D$10="Entry storage",INDEX(entrystorage,$F61,3),IF('Period booking'!$D$10="Entry Regular",INDEX(entry,$F61,3),IF('Period booking'!$D$10="Entry LNG",INDEX(entryLNG,$F61,3)))))) -> 0.87168029 | N61: =IF('Period booking'!$D$10="Exit storage",INDEX(exitstorage,$F61,4),IF('Period booking'!$D$10="Exit non-storage",INDEX(exit,$F61,4),IF('Period booking'!$D$10="Entry storage",INDEX(entrystorage,$F61,4),IF('Period booking'!$D$10="Entry Regular",INDEX(entry,$F61,4),IF('Period booking'!$D$10="Entry non-storage",INDEX(entry,1,1),IF('Period booking'!$D$10="Entry LNG",INDEX(entryLNG,$F61,4))))))) -> 0.037552
B62: 2026 | C62: March | D62: 2026March | F62: 3 | G62: 1 | H62: 31 | I62: =IF(G62<>G61,SUM(H62:H64),I61) -> 90 | K62: =IF('Period booking'!$D$10="Exit storage",INDEX(exitstorage,1,1),IF('Period booking'!$D$10="Exit non-storage",INDEX(exit,1,1),IF('Period booking'!$D$10="Entry storage",INDEX(entrystorage,1,1),IF('Period booking'!$D$10="Entry Regular",INDEX(entry,1,1),IF('Period booking'!$D$10="Entry LNG",INDEX(entryLNG,1,1)))))) -> 4.94149823 | L62: =IF('Period booking'!$D$10="Exit storage",INDEX(exitstorage,$G62,2),IF('Period booking'!$D$10="Exit non-storage",INDEX(exit,$G62,2),IF('Period booking'!$D$10="Entry storage",INDEX(entrystorage,$G62,2),IF('Period booking'!$D$10="Entry Regular",INDEX(entry,$G62,2),IF('Period booking'!$D$10="Entry LNG",INDEX(entryLNG,$G62,2)))))) -> 2.25718162 | M62: =IF('Period booking'!$D$10="Exit storage",INDEX(exitstorage,$F62,3),IF('Period booking'!$D$10="Exit non-storage",INDEX(exit,$F62,3),IF('Period booking'!$D$10="Entry storage",INDEX(entrystorage,$F62,3),IF('Period booking'!$D$10="Entry Regular",INDEX(entry,$F62,3),IF('Period booking'!$D$10="Entry LNG",INDEX(entryLNG,$F62,3)))))) -> 0.75481047 | N62: =IF('Period booking'!$D$10="Exit storage",INDEX(exitstorage,$F62,4),IF('Period booking'!$D$10="Exit non-storage",INDEX(exit,$F62,4),IF('Period booking'!$D$10="Entry storage",INDEX(entrystorage,$F62,4),IF('Period booking'!$D$10="Entry Regular",INDEX(entry,$F62,4),IF('Period booking'!$D$10="Entry non-storage",INDEX(entry,1,1),IF('Period booking'!$D$10="Entry LNG",INDEX(entryLNG,$F62,4))))))) -> 0.02935453
B63: 2026 | C63: April | D63: 2026April | F63: 4 | G63: 4 | H63: 30 | I63: 91 | K63: =IF('Period booking'!$D$10="Exit storage",INDEX(exitstorage,1,1),IF('Period booking'!$D$10="Exit non-storage",INDEX(exit,1,1),IF('Period booking'!$D$10="Entry storage",INDEX(entrystorage,1,1),IF('Period booking'!$D$10="Entry Regular",INDEX(entry,1,1),IF('Period booking'!$D$10="Entry LNG",INDEX(entryLNG,1,1)))))) -> 4.94149823 | L63: =IF('Period booking'!$D$10="Exit storage",INDEX(exitstorage,$G63,2),IF('Period booking'!$D$10="Exit non-storage",INDEX(exit,$G63,2),IF('Period booking'!$D$10="Entry storage",INDEX(entrystorage,$G63,2),IF('Period booking'!$D$10="Entry Regular",INDEX(entry,$G63,2),IF('Period booking'!$D$10="Entry LNG",INDEX(entryLNG,$G63,2)))))) -> 1.20735017 | M63: =IF('Period booking'!$D$10="Exit storage",INDEX(exitstorage,$F63,3),IF('Period booking'!$D$10="Exit non-storage",INDEX(exit,$F63,3),IF('Period booking'!$D$10="Entry storage",INDEX(entrystorage,$F63,3),IF('Period booking'!$D$10="Entry Regular",INDEX(entry,$F63,3),IF('Period booking'!$D$10="Entry LNG",INDEX(entryLNG,$F63,3)))))) -> 0.54464787 | N63: =IF('Period booking'!$D$10="Exit storage",INDEX(exitstorage,$F63,4),IF('Period booking'!$D$10="Exit non-storage",INDEX(exit,$F63,4),IF('Period booking'!$D$10="Entry storage",INDEX(entrystorage,$F63,4),IF('Period booking'!$D$10="Entry Regular",INDEX(entry,$F63,4),IF('Period booking'!$D$10="Entry non-storage",INDEX(entry,1,1),IF('Period booking'!$D$10="Entry LNG",INDEX(entryLNG,$F63,4))))))) -> 0.02189152
B64: 2026 | C64: May | D64: 2026May | F64: 5 | G64: 4 | H64: 31 | I64: 91 | K64: =IF('Period booking'!$D$10="Exit storage",INDEX(exitstorage,1,1),IF('Period booking'!$D$10="Exit non-storage",INDEX(exit,1,1),IF('Period booking'!$D$10="Entry storage",INDEX(entrystorage,1,1),IF('Period booking'!$D$10="Entry Regular",INDEX(entry,1,1),IF('Period booking'!$D$10="Entry LNG",INDEX(entryLNG,1,1)))))) -> 4.94149823 | L64: =IF('Period booking'!$D$10="Exit storage",INDEX(exitstorage,$G64,2),IF('Period booking'!$D$10="Exit non-storage",INDEX(exit,$G64,2),IF('Period booking'!$D$10="Entry storage",INDEX(entrystorage,$G64,2),IF('Period booking'!$D$10="Entry Regular",INDEX(entry,$G64,2),IF('Period booking'!$D$10="Entry LNG",INDEX(entryLNG,$G64,2)))))) -> 1.20735017 | M64: =IF('Period booking'!$D$10="Exit storage",INDEX(exitstorage,$F64,3),IF('Period booking'!$D$10="Exit non-storage",INDEX(exit,$F64,3),IF('Period booking'!$D$10="Entry storage",INDEX(entrystorage,$F64,3),IF('Period booking'!$D$10="Entry Regular",INDEX(entry,$F64,3),IF('Period booking'!$D$10="Entry LNG",INDEX(entryLNG,$F64,3)))))) -> 0.4985904 | N64: =IF('Period booking'!$D$10="Exit storage",INDEX(exitstorage,$F64,4),IF('Period booking'!$D$10="Exit non-storage",INDEX(exit,$F64,4),IF('Period booking'!$D$10="Entry storage",INDEX(entrystorage,$F64,4),IF('Period booking'!$D$10="Entry Regular",INDEX(entry,$F64,4),IF('Period booking'!$D$10="Entry non-storage",INDEX(entry,1,1),IF('Period booking'!$D$10="Entry LNG",INDEX(entryLNG,$F64,4))))))) -> 0.01940385
B65: 2026 | C65: June | D65: 2026June | F65: 6 | G65: 4 | H65: 30 | I65: 91 | K65: =IF('Period booking'!$D$10="Exit storage",INDEX(exitstorage,1,1),IF('Period booking'!$D$10="Exit non-storage",INDEX(exit,1,1),IF('Period booking'!$D$10="Entry storage",INDEX(entrystorage,1,1),IF('Period booking'!$D$10="Entry Regular",INDEX(entry,1,1),IF('Period booking'!$D$10="Entry LNG",INDEX(entryLNG,1,1)))))) -> 4.94149823 | L65: =IF('Period booking'!$D$10="Exit storage",INDEX(exitstorage,$G65,2),IF('Period booking'!$D$10="Exit non-storage",INDEX(exit,$G65,2),IF('Period booking'!$D$10="Entry storage",INDEX(entrystorage,$G65,2),IF('Period booking'!$D$10="Entry Regular",INDEX(entry,$G65,2),IF('Period booking'!$D$10="Entry LNG",INDEX(entryLNG,$G65,2)))))) -> 1.20735017 | M65: =IF('Period booking'!$D$10="Exit storage",INDEX(exitstorage,$F65,3),IF('Period booking'!$D$10="Exit non-storage",INDEX(exit,$F65,3),IF('Period booking'!$D$10="Entry storage",INDEX(entrystorage,$F65,3),IF('Period booking'!$D$10="Entry Regular",INDEX(entry,$F65,3),IF('Period booking'!$D$10="Entry LNG",INDEX(entryLNG,$F65,3)))))) -> 0.40513516 | N65: =IF('Period booking'!$D$10="Exit storage",INDEX(exitstorage,$F65,4),IF('Period booking'!$D$10="Exit non-storage",INDEX(exit,$F65,4),IF('Period booking'!$D$10="Entry storage",INDEX(entrystorage,$F65,4),IF('Period booking'!$D$10="Entry Regular",INDEX(entry,$F65,4),IF('Period booking'!$D$10="Entry non-storage",INDEX(entry,1,1),IF('Period booking'!$D$10="Entry LNG",INDEX(entryLNG,$F65,4))))))) -> 0.01630017
B66: 2026 | C66: July | D66: 2026July | F66: 7 | G66: 7 | H66: 31 | I66: 92 | K66: =IF('Period booking'!$D$10="Exit storage",INDEX(exitstorage,1,1),IF('Period booking'!$D$10="Exit non-storage",INDEX(exit,1,1),IF('Period booking'!$D$10="Entry storage",INDEX(entrystorage,1,1),IF('Period booking'!$D$10="Entry Regular",INDEX(entry,1,1),IF('Period booking'!$D$10="Entry LNG",INDEX(entryLNG,1,1)))))) -> 4.94149823 | L66: =IF('Period booking'!$D$10="Exit storage",INDEX(exitstorage,$G66,2),IF('Period booking'!$D$10="Exit non-storage",INDEX(exit,$G66,2),IF('Period booking'!$D$10="Entry storage",INDEX(entrystorage,$G66,2),IF('Period booking'!$D$10="Entry Regular",INDEX(entry,$G66,2),IF('Period booking'!$D$10="Entry LNG",INDEX(entryLNG,$G66,2)))))) -> 0.97929664 | M66: =IF('Period booking'!$D$10="Exit storage",INDEX(exitstorage,$F66,3),IF('Period booking'!$D$10="Exit non-storage",INDEX(exit,$F66,3),IF('Period booking'!$D$10="Entry storage",INDEX(entrystorage,$F66,3),IF('Period booking'!$D$10="Entry Regular",INDEX(entry,$F66,3),IF('Period booking'!$D$10="Entry LNG",INDEX(entryLNG,$F66,3)))))) -> 0.39534693 | N66: =IF('Period booking'!$D$10="Exit storage",INDEX(exitstorage,$F66,4),IF('Period booking'!$D$10="Exit non-storage",INDEX(exit,$F66,4),IF('Period booking'!$D$10="Entry storage",INDEX(entrystorage,$F66,4),IF('Period booking'!$D$10="Entry Regular",INDEX(entry,$F66,4),IF('Period booking'!$D$10="Entry non-storage",INDEX(entry,1,1),IF('Period booking'!$D$10="Entry LNG",INDEX(entryLNG,$F66,4))))))) -> 0.01537618
B67: 2026 | C67: August | D67: 2026August | F67: 8 | G67: 7 | H67: 31 | I67: 92 | K67: =IF('Period booking'!$D$10="Exit storage",INDEX(exitstorage,1,1),IF('Period booking'!$D$10="Exit non-storage",INDEX(exit,1,1),IF('Period booking'!$D$10="Entry storage",INDEX(entrystorage,1,1),IF('Period booking'!$D$10="Entry Regular",INDEX(entry,1,1),IF('Period booking'!$D$10="Entry LNG",INDEX(entryLNG,1,1)))))) -> 4.94149823 | L67: =IF('Period booking'!$D$10="Exit storage",INDEX(exitstorage,$G67,2),IF('Period booking'!$D$10="Exit non-storage",INDEX(exit,$G67,2),IF('Period booking'!$D$10="Entry storage",INDEX(entrystorage,$G67,2),IF('Period booking'!$D$10="Entry Regular",INDEX(entry,$G67,2),IF('Period booking'!$D$10="Entry LNG",INDEX(entryLNG,$G67,2)))))) -> 0.97929664 | M67: =IF('Period booking'!$D$10="Exit storage",INDEX(exitstorage,$F67,3),IF('Period booking'!$D$10="Exit non-storage",INDEX(exit,$F67,3),IF('Period booking'!$D$10="Entry storage",INDEX(entrystorage,$F67,3),IF('Period booking'!$D$10="Entry Regular",INDEX(entry,$F67,3),IF('Period booking'!$D$10="Entry LNG",INDEX(entryLNG,$F67,3)))))) -> 0.3758314 | N67: =IF('Period booking'!$D$10="Exit storage",INDEX(exitstorage,$F67,4),IF('Period booking'!$D$10="Exit non-storage",INDEX(exit,$F67,4),IF('Period booking'!$D$10="Entry storage",INDEX(entrystorage,$F67,4),IF('Period booking'!$D$10="Entry Regular",INDEX(entry,$F67,4),IF('Period booking'!$D$10="Entry non-storage",INDEX(entry,1,1),IF('Period booking'!$D$10="Entry LNG",INDEX(entryLNG,$F67,4))))))) -> 0.01464172
B68: 2026 | C68: September | D68: 2026September | F68: 9 | G68: 7 | H68: 30 | I68: 92 | K68: =IF('Period booking'!$D$10="Exit storage",INDEX(exitstorage,1,1),IF('Period booking'!$D$10="Exit non-storage",INDEX(exit,1,1),IF('Period booking'!$D$10="Entry storage",INDEX(entrystorage,1,1),IF('Period booking'!$D$10="Entry Regular",INDEX(entry,1,1),IF('Period booking'!$D$10="Entry LNG",INDEX(entryLNG,1,1)))))) -> 4.94149823 | L68: =IF('Period booking'!$D$10="Exit storage",INDEX(exitstorage,$G68,2),IF('Period booking'!$D$10="Exit non-storage",INDEX(exit,$G68,2),IF('Period booking'!$D$10="Entry storage",INDEX(entrystorage,$G68,2),IF('Period booking'!$D$10="Entry Regular",INDEX(entry,$G68,2),IF('Period booking'!$D$10="Entry LNG",INDEX(entryLNG,$G68,2)))))) -> 0.97929664 | M68: =IF('Period booking'!$D$10="Exit storage",INDEX(exitstorage,$F68,3),IF('Period booking'!$D$10="Exit non-storage",INDEX(exit,$F68,3),IF('Period booking'!$D$10="Entry storage",INDEX(entrystorage,$F68,3),IF('Period booking'!$D$10="Entry Regular",INDEX(entry,$F68,3),IF('Period booking'!$D$10="Entry LNG",INDEX(entryLNG,$F68,3)))))) -> 0.40391671 | N68: =IF('Period booking'!$D$10="Exit storage",INDEX(exitstorage,$F68,4),IF('Period booking'!$D$10="Exit non-storage",INDEX(exit,$F68,4),IF('Period booking'!$D$10="Entry storage",INDEX(entrystorage,$F68,4),IF('Period booking'!$D$10="Entry Regular",INDEX(entry,$F68,4),IF('Period booking'!$D$10="Entry non-storage",INDEX(entry,1,1),IF('Period booking'!$D$10="Entry LNG",INDEX(entryLNG,$F68,4))))))) -> 0.0162528
B69: 2026 | C69: October | D69: 2026October | F69: 10 | G69: 10 | H69: 31 | I69: 92 | K69: =IF('Period booking'!$D$10="Exit storage",INDEX(exitstorage,1,1),IF('Period booking'!$D$10="Exit non-storage",INDEX(exit,1,1),IF('Period booking'!$D$10="Entry storage",INDEX(entrystorage,1,1),IF('Period booking'!$D$10="Entry Regular",INDEX(entry,1,1),IF('Period booking'!$D$10="Entry LNG",INDEX(entryLNG,1,1)))))) -> 4.94149823 | L69: =IF('Period booking'!$D$10="Exit storage",INDEX(exitstorage,$G69,2),IF('Period booking'!$D$10="Exit non-storage",INDEX(exit,$G69,2),IF('Period booking'!$D$10="Entry storage",INDEX(entrystorage,$G69,2),IF('Period booking'!$D$10="Entry Regular",INDEX(entry,$G69,2),IF('Period booking'!$D$10="Entry LNG",INDEX(entryLNG,$G69,2)))))) -> 1.72038599 | M69: =IF('Period booking'!$D$10="Exit storage",INDEX(exitstorage,$F69,3),IF('Period booking'!$D$10="Exit non-storage",INDEX(exit,$F69,3),IF('Period booking'!$D$10="Entry storage",INDEX(entrystorage,$F69,3),IF('Period booking'!$D$10="Entry Regular",INDEX(entry,$F69,3),IF('Period booking'!$D$10="Entry LNG",INDEX(entryLNG,$F69,3)))))) -> 0.47907487 | N69: =IF('Period booking'!$D$10="Exit storage",INDEX(exitstorage,$F69,4),IF('Period booking'!$D$10="Exit non-storage",INDEX(exit,$F69,4),IF('Period booking'!$D$10="Entry storage",INDEX(entrystorage,$F69,4),IF('Period booking'!$D$10="Entry Regular",INDEX(entry,$F69,4),IF('Period booking'!$D$10="Entry non-storage",INDEX(entry,1,1),IF('Period booking'!$D$10="Entry LNG",INDEX(entryLNG,$F69,4))))))) -> 0.0186457
B70: 2026 | C70: November | D70: 2026November | F70: 11 | G70: 10 | H70: 30 | I70: 92 | K70: =IF('Period booking'!$D$10="Exit storage",INDEX(exitstorage,1,1),IF('Period booking'!$D$10="Exit non-storage",INDEX(exit,1,1),IF('Period booking'!$D$10="Entry storage",INDEX(entrystorage,1,1),IF('Period booking'!$D$10="Entry Regular",INDEX(entry,1,1),IF('Period booking'!$D$10="Entry LNG",INDEX(entryLNG,1,1)))))) -> 4.94149823 | L70: =IF('Period booking'!$D$10="Exit storage",INDEX(exitstorage,$G70,2),IF('Period booking'!$D$10="Exit non-storage",INDEX(exit,$G70,2),IF('Period booking'!$D$10="Entry storage",INDEX(entrystorage,$G70,2),IF('Period booking'!$D$10="Entry Regular",INDEX(entry,$G70,2),IF('Period booking'!$D$10="Entry LNG",INDEX(entryLNG,$G70,2)))))) -> 1.72038599 | M70: =IF('Period booking'!$D$10="Exit storage",INDEX(exitstorage,$F70,3),IF('Period booking'!$D$10="Exit non-storage",INDEX(exit,$F70,3),IF('Period booking'!$D$10="Entry storage",INDEX(entrystorage,$F70,3),IF('Period booking'!$D$10="Entry Regular",INDEX(entry,$F70,3),IF('Period booking'!$D$10="Entry LNG",INDEX(entryLNG,$F70,3)))))) -> 0.68842517 | N70: =IF('Period booking'!$D$10="Exit storage",INDEX(exitstorage,$F70,4),IF('Period booking'!$D$10="Exit non-storage",INDEX(exit,$F70,4),IF('Period booking'!$D$10="Entry storage",INDEX(entrystorage,$F70,4),IF('Period booking'!$D$10="Entry Regular",INDEX(entry,$F70,4),IF('Period booking'!$D$10="Entry non-storage",INDEX(entry,1,1),IF('Period booking'!$D$10="Entry LNG",INDEX(entryLNG,$F70,4))))))) -> 0.02767239
B71: 2026 | C71: December | D71: 2026December | F71: 12 | G71: 10 | H71: 31 | I71: 92 | K71: =IF('Period booking'!$D$10="Exit storage",INDEX(exitstorage,1,1),IF('Period booking'!$D$10="Exit non-storage",INDEX(exit,1,1),IF('Period booking'!$D$10="Entry storage",INDEX(entrystorage,1,1),IF('Period booking'!$D$10="Entry Regular",INDEX(entry,1,1),IF('Period booking'!$D$10="Entry LNG",INDEX(entryLNG,1,1)))))) -> 4.94149823 | L71: =IF('Period booking'!$D$10="Exit storage",INDEX(exitstorage,$G71,2),IF('Period booking'!$D$10="Exit non-storage",INDEX(exit,$G71,2),IF('Period booking'!$D$10="Entry storage",INDEX(entrystorage,$G71,2),IF('Period booking'!$D$10="Entry Regular",INDEX(entry,$G71,2),IF('Period booking'!$D$10="Entry LNG",INDEX(entryLNG,$G71,2)))))) -> 1.72038599 | M71: =IF('Period booking'!$D$10="Exit storage",INDEX(exitstorage,$F71,3),IF('Period booking'!$D$10="Exit non-storage",INDEX(exit,$F71,3),IF('Period booking'!$D$10="Entry storage",INDEX(entrystorage,$F71,3),IF('Period booking'!$D$10="Entry Regular",INDEX(entry,$F71,3),IF('Period booking'!$D$10="Entry LNG",INDEX(entryLNG,$F71,3)))))) -> 0.89645547 | N71: =IF('Period booking'!$D$10="Exit storage",INDEX(exitstorage,$F71,4),IF('Period booking'!$D$10="Exit non-storage",INDEX(exit,$F71,4),IF('Period booking'!$D$10="Entry storage",INDEX(entrystorage,$F71,4),IF('Period booking'!$D$10="Entry Regular",INDEX(entry,$F71,4),IF('Period booking'!$D$10="Entry non-storage",INDEX(entry,1,1),IF('Period booking'!$D$10="Entry LNG",INDEX(entryLNG,$F71,4))))))) -> 0.03487479
B72: =YEAR(L$8+366) -> 2027 | C72: January | D72: 2027January | F72: 1 | G72: 1 | H72: 31 | I72: 90 | K72: =IF('Period booking'!$D$10="Exit storage",INDEX(exitstorage,1,1),IF('Period booking'!$D$10="Exit non-storage",INDEX(exit,1,1),IF('Period booking'!$D$10="Entry storage",INDEX(entrystorage,1,1),IF('Period booking'!$D$10="Entry Regular",INDEX(entry,1,1),IF('Period booking'!$D$10="Entry LNG",INDEX(entryLNG,1,1)))))) -> 4.94149823 | L72: =IF('Period booking'!$D$10="Exit storage",INDEX(exitstorage,$G72,2),IF('Period booking'!$D$10="Exit non-storage",INDEX(exit,$G72,2),IF('Period booking'!$D$10="Entry storage",INDEX(entrystorage,$G72,2),IF('Period booking'!$D$10="Entry Regular",INDEX(entry,$G72,2),IF('Period booking'!$D$10="Entry LNG",INDEX(entryLNG,$G72,2)))))) -> 2.25718162 | M72: =IF('Period booking'!$D$10="Exit storage",INDEX(exitstorage,$F72,3),IF('Period booking'!$D$10="Exit non-storage",INDEX(exit,$F72,3),IF('Period booking'!$D$10="Entry storage",INDEX(entrystorage,$F72,3),IF('Period booking'!$D$10="Entry Regular",INDEX(entry,$F72,3),IF('Period booking'!$D$10="Entry LNG",INDEX(entryLNG,$F72,3)))))) -> 1.07964967 | N72: =IF('Period booking'!$D$10="Exit storage",INDEX(exitstorage,$F72,4),IF('Period booking'!$D$10="Exit non-storage",INDEX(exit,$F72,4),IF('Period booking'!$D$10="Entry storage",INDEX(entrystorage,$F72,4),IF('Period booking'!$D$10="Entry Regular",INDEX(entry,$F72,4),IF('Period booking'!$D$10="Entry non-storage",INDEX(entry,1,1),IF('Period booking'!$D$10="Entry LNG",INDEX(entryLNG,$F72,4))))))) -> 0.04200612
B73: 2027 | C73: February | D73: 2027February | F73: 2 | G73: 1 | H73: 28 | I73: 90 | K73: =IF('Period booking'!$D$10="Exit storage",INDEX(exitstorage,1,1),IF('Period booking'!$D$10="Exit non-storage",INDEX(exit,1,1),IF('Period booking'!$D$10="Entry storage",INDEX(entrystorage,1,1),IF('Period booking'!$D$10="Entry Regular",INDEX(entry,1,1),IF('Period booking'!$D$10="Entry LNG",INDEX(entryLNG,1,1)))))) -> 4.94149823 | L73: =IF('Period booking'!$D$10="Exit storage",INDEX(exitstorage,$G73,2),IF('Period booking'!$D$10="Exit non-storage",INDEX(exit,$G73,2),IF('Period booking'!$D$10="Entry storage",INDEX(entrystorage,$G73,2),IF('Period booking'!$D$10="Entry Regular",INDEX(entry,$G73,2),IF('Period booking'!$D$10="Entry LNG",INDEX(entryLNG,$G73,2)))))) -> 2.25718162 | M73: =IF('Period booking'!$D$10="Exit storage",INDEX(exitstorage,$F73,3),IF('Period booking'!$D$10="Exit non-storage",INDEX(exit,$F73,3),IF('Period booking'!$D$10="Entry storage",INDEX(entrystorage,$F73,3),IF('Period booking'!$D$10="Entry Regular",INDEX(entry,$F73,3),IF('Period booking'!$D$10="Entry LNG",INDEX(entryLNG,$F73,3)))))) -> 0.87168029 | N73: =IF('Period booking'!$D$10="Exit storage",INDEX(exitstorage,$F73,4),IF('Period booking'!$D$10="Exit non-storage",INDEX(exit,$F73,4),IF('Period booking'!$D$10="Entry storage",INDEX(entrystorage,$F73,4),IF('Period booking'!$D$10="Entry Regular",INDEX(entry,$F73,4),IF('Period booking'!$D$10="Entry non-storage",INDEX(entry,1,1),IF('Period booking'!$D$10="Entry LNG",INDEX(entryLNG,$F73,4))))))) -> 0.037552
B74: 2027 | C74: March | D74: 2027March | F74: 3 | G74: 1 | H74: 31 | I74: 90 | K74: =IF('Period booking'!$D$10="Exit storage",INDEX(exitstorage,1,1),IF('Period booking'!$D$10="Exit non-storage",INDEX(exit,1,1),IF('Period booking'!$D$10="Entry storage",INDEX(entrystorage,1,1),IF('Period booking'!$D$10="Entry Regular",INDEX(entry,1,1),IF('Period booking'!$D$10="Entry LNG",INDEX(entryLNG,1,1)))))) -> 4.94149823 | L74: =IF('Period booking'!$D$10="Exit storage",INDEX(exitstorage,$G74,2),IF('Period booking'!$D$10="Exit non-storage",INDEX(exit,$G74,2),IF('Period booking'!$D$10="Entry storage",INDEX(entrystorage,$G74,2),IF('Period booking'!$D$10="Entry Regular",INDEX(entry,$G74,2),IF('Period booking'!$D$10="Entry LNG",INDEX(entryLNG,$G74,2)))))) -> 2.25718162 | M74: =IF('Period booking'!$D$10="Exit storage",INDEX(exitstorage,$F74,3),IF('Period booking'!$D$10="Exit non-storage",INDEX(exit,$F74,3),IF('Period booking'!$D$10="Entry storage",INDEX(entrystorage,$F74,3),IF('Period booking'!$D$10="Entry Regular",INDEX(entry,$F74,3),IF('Period booking'!$D$10="Entry LNG",INDEX(entryLNG,$F74,3)))))) -> 0.75481047 | N74: =IF('Period booking'!$D$10="Exit storage",INDEX(exitstorage,$F74,4),IF('Period booking'!$D$10="Exit non-storage",INDEX(exit,$F74,4),IF('Period booking'!$D$10="Entry storage",INDEX(entrystorage,$F74,4),IF('Period booking'!$D$10="Entry Regular",INDEX(entry,$F74,4),IF('Period booking'!$D$10="Entry non-storage",INDEX(entry,1,1),IF('Period booking'!$D$10="Entry LNG",INDEX(entryLNG,$F74,4))))))) -> 0.02935453
B75: 2027 | C75: April | D75: 2027April | F75: 4 | G75: 4 | H75: 30 | I75: 91 | K75: =IF('Period booking'!$D$10="Exit storage",INDEX(exitstorage,1,1),IF('Period booking'!$D$10="Exit non-storage",INDEX(exit,1,1),IF('Period booking'!$D$10="Entry storage",INDEX(entrystorage,1,1),IF('Period booking'!$D$10="Entry Regular",INDEX(entry,1,1),IF('Period booking'!$D$10="Entry LNG",INDEX(entryLNG,1,1)))))) -> 4.94149823 | L75: =IF('Period booking'!$D$10="Exit storage",INDEX(exitstorage,$G75,2),IF('Period booking'!$D$10="Exit non-storage",INDEX(exit,$G75,2),IF('Period booking'!$D$10="Entry storage",INDEX(entrystorage,$G75,2),IF('Period booking'!$D$10="Entry Regular",INDEX(entry,$G75,2),IF('Period booking'!$D$10="Entry LNG",INDEX(entryLNG,$G75,2)))))) -> 1.20735017 | M75: =IF('Period booking'!$D$10="Exit storage",INDEX(exitstorage,$F75,3),IF('Period booking'!$D$10="Exit non-storage",INDEX(exit,$F75,3),IF('Period booking'!$D$10="Entry storage",INDEX(entrystorage,$F75,3),IF('Period booking'!$D$10="Entry Regular",INDEX(entry,$F75,3),IF('Period booking'!$D$10="Entry LNG",INDEX(entryLNG,$F75,3)))))) -> 0.54464787 | N75: =IF('Period booking'!$D$10="Exit storage",INDEX(exitstorage,$F75,4),IF('Period booking'!$D$10="Exit non-storage",INDEX(exit,$F75,4),IF('Period booking'!$D$10="Entry storage",INDEX(entrystorage,$F75,4),IF('Period booking'!$D$10="Entry Regular",INDEX(entry,$F75,4),IF('Period booking'!$D$10="Entry non-storage",INDEX(entry,1,1),IF('Period booking'!$D$10="Entry LNG",INDEX(entryLNG,$F75,4))))))) -> 0.02189152
B76: 2027 | C76: May | D76: 2027May | F76: 5 | G76: 4 | H76: 31 | I76: 91 | K76: =IF('Period booking'!$D$10="Exit storage",INDEX(exitstorage,1,1),IF('Period booking'!$D$10="Exit non-storage",INDEX(exit,1,1),IF('Period booking'!$D$10="Entry storage",INDEX(entrystorage,1,1),IF('Period booking'!$D$10="Entry Regular",INDEX(entry,1,1),IF('Period booking'!$D$10="Entry LNG",INDEX(entryLNG,1,1)))))) -> 4.94149823 | L76: =IF('Period booking'!$D$10="Exit storage",INDEX(exitstorage,$G76,2),IF('Period booking'!$D$10="Exit non-storage",INDEX(exit,$G76,2),IF('Period booking'!$D$10="Entry storage",INDEX(entrystorage,$G76,2),IF('Period booking'!$D$10="Entry Regular",INDEX(entry,$G76,2),IF('Period booking'!$D$10="Entry LNG",INDEX(entryLNG,$G76,2)))))) -> 1.20735017 | M76: =IF('Period booking'!$D$10="Exit storage",INDEX(exitstorage,$F76,3),IF('Period booking'!$D$10="Exit non-storage",INDEX(exit,$F76,3),IF('Period booking'!$D$10="Entry storage",INDEX(entrystorage,$F76,3),IF('Period booking'!$D$10="Entry Regular",INDEX(entry,$F76,3),IF('Period booking'!$D$10="Entry LNG",INDEX(entryLNG,$F76,3)))))) -> 0.4985904 | N76: =IF('Period booking'!$D$10="Exit storage",INDEX(exitstorage,$F76,4),IF('Period booking'!$D$10="Exit non-storage",INDEX(exit,$F76,4),IF('Period booking'!$D$10="Entry storage",INDEX(entrystorage,$F76,4),IF('Period booking'!$D$10="Entry Regular",INDEX(entry,$F76,4),IF('Period booking'!$D$10="Entry non-storage",INDEX(entry,1,1),IF('Period booking'!$D$10="Entry LNG",INDEX(entryLNG,$F76,4))))))) -> 0.01940385
B77: 2027 | C77: June | D77: 2027June | F77: 6 | G77: 4 | H77: 30 | I77: 91 | K77: =IF('Period booking'!$D$10="Exit storage",INDEX(exitstorage,1,1),IF('Period booking'!$D$10="Exit non-storage",INDEX(exit,1,1),IF('Period booking'!$D$10="Entry storage",INDEX(entrystorage,1,1),IF('Period booking'!$D$10="Entry Regular",INDEX(entry,1,1),IF('Period booking'!$D$10="Entry LNG",INDEX(entryLNG,1,1)))))) -> 4.94149823 | L77: =IF('Period booking'!$D$10="Exit storage",INDEX(exitstorage,$G77,2),IF('Period booking'!$D$10="Exit non-storage",INDEX(exit,$G77,2),IF('Period booking'!$D$10="Entry storage",INDEX(entrystorage,$G77,2),IF('Period booking'!$D$10="Entry Regular",INDEX(entry,$G77,2),IF('Period booking'!$D$10="Entry LNG",INDEX(entryLNG,$G77,2)))))) -> 1.20735017 | M77: =IF('Period booking'!$D$10="Exit storage",INDEX(exitstorage,$F77,3),IF('Period booking'!$D$10="Exit non-storage",INDEX(exit,$F77,3),IF('Period booking'!$D$10="Entry storage",INDEX(entrystorage,$F77,3),IF('Period booking'!$D$10="Entry Regular",INDEX(entry,$F77,3),IF('Period booking'!$D$10="Entry LNG",INDEX(entryLNG,$F77,3)))))) -> 0.40513516 | N77: =IF('Period booking'!$D$10="Exit storage",INDEX(exitstorage,$F77,4),IF('Period booking'!$D$10="Exit non-storage",INDEX(exit,$F77,4),IF('Period booking'!$D$10="Entry storage",INDEX(entrystorage,$F77,4),IF('Period booking'!$D$10="Entry Regular",INDEX(entry,$F77,4),IF('Period booking'!$D$10="Entry non-storage",INDEX(entry,1,1),IF('Period booking'!$D$10="Entry LNG",INDEX(entryLNG,$F77,4))))))) -> 0.01630017
B78: 2027 | C78: July | D78: 2027July | F78: 7 | G78: 7 | H78: 31 | I78: 92 | K78: =IF('Period booking'!$D$10="Exit storage",INDEX(exitstorage,1,1),IF('Period booking'!$D$10="Exit non-storage",INDEX(exit,1,1),IF('Period booking'!$D$10="Entry storage",INDEX(entrystorage,1,1),IF('Period booking'!$D$10="Entry Regular",INDEX(entry,1,1),IF('Period booking'!$D$10="Entry LNG",INDEX(entryLNG,1,1)))))) -> 4.94149823 | L78: =IF('Period booking'!$D$10="Exit storage",INDEX(exitstorage,$G78,2),IF('Period booking'!$D$10="Exit non-storage",INDEX(exit,$G78,2),IF('Period booking'!$D$10="Entry storage",INDEX(entrystorage,$G78,2),IF('Period booking'!$D$10="Entry Regular",INDEX(entry,$G78,2),IF('Period booking'!$D$10="Entry LNG",INDEX(entryLNG,$G78,2)))))) -> 0.97929664 | M78: =IF('Period booking'!$D$10="Exit storage",INDEX(exitstorage,$F78,3),IF('Period booking'!$D$10="Exit non-storage",INDEX(exit,$F78,3),IF('Period booking'!$D$10="Entry storage",INDEX(entrystorage,$F78,3),IF('Period booking'!$D$10="Entry Regular",INDEX(entry,$F78,3),IF('Period booking'!$D$10="Entry LNG",INDEX(entryLNG,$F78,3)))))) -> 0.39534693 | N78: =IF('Period booking'!$D$10="Exit storage",INDEX(exitstorage,$F78,4),IF('Period booking'!$D$10="Exit non-storage",INDEX(exit,$F78,4),IF('Period booking'!$D$10="Entry storage",INDEX(entrystorage,$F78,4),IF('Period booking'!$D$10="Entry Regular",INDEX(entry,$F78,4),IF('Period booking'!$D$10="Entry non-storage",INDEX(entry,1,1),IF('Period booking'!$D$10="Entry LNG",INDEX(entryLNG,$F78,4))))))) -> 0.01537618
B79: 2027 | C79: August | D79: 2027August | F79: 8 | G79: 7 | H79: 31 | I79: 92 | K79: =IF('Period booking'!$D$10="Exit storage",INDEX(exitstorage,1,1),IF('Period booking'!$D$10="Exit non-storage",INDEX(exit,1,1),IF('Period booking'!$D$10="Entry storage",INDEX(entrystorage,1,1),IF('Period booking'!$D$10="Entry Regular",INDEX(entry,1,1),IF('Period booking'!$D$10="Entry LNG",INDEX(entryLNG,1,1)))))) -> 4.94149823 | L79: =IF('Period booking'!$D$10="Exit storage",INDEX(exitstorage,$G79,2),IF('Period booking'!$D$10="Exit non-storage",INDEX(exit,$G79,2),IF('Period booking'!$D$10="Entry storage",INDEX(entrystorage,$G79,2),IF('Period booking'!$D$10="Entry Regular",INDEX(entry,$G79,2),IF('Period booking'!$D$10="Entry LNG",INDEX(entryLNG,$G79,2)))))) -> 0.97929664 | M79: =IF('Period booking'!$D$10="Exit storage",INDEX(exitstorage,$F79,3),IF('Period booking'!$D$10="Exit non-storage",INDEX(exit,$F79,3),IF('Period booking'!$D$10="Entry storage",INDEX(entrystorage,$F79,3),IF('Period booking'!$D$10="Entry Regular",INDEX(entry,$F79,3),IF('Period booking'!$D$10="Entry LNG",INDEX(entryLNG,$F79,3)))))) -> 0.3758314 | N79: =IF('Period booking'!$D$10="Exit storage",INDEX(exitstorage,$F79,4),IF('Period booking'!$D$10="Exit non-storage",INDEX(exit,$F79,4),IF('Period booking'!$D$10="Entry storage",INDEX(entrystorage,$F79,4),IF('Period booking'!$D$10="Entry Regular",INDEX(entry,$F79,4),IF('Period booking'!$D$10="Entry non-storage",INDEX(entry,1,1),IF('Period booking'!$D$10="Entry LNG",INDEX(entryLNG,$F79,4))))))) -> 0.01464172
B80: 2027 | C80: September | D80: 2027September | F80: 9 | G80: 7 | H80: 30 | I80: 92 | K80: =IF('Period booking'!$D$10="Exit storage",INDEX(exitstorage,1,1),IF('Period booking'!$D$10="Exit non-storage",INDEX(exit,1,1),IF('Period booking'!$D$10="Entry storage",INDEX(entrystorage,1,1),IF('Period booking'!$D$10="Entry Regular",INDEX(entry,1,1),IF('Period booking'!$D$10="Entry LNG",INDEX(entryLNG,1,1)))))) -> 4.94149823 | L80: =IF('Period booking'!$D$10="Exit storage",INDEX(exitstorage,$G80,2),IF('Period booking'!$D$10="Exit non-storage",INDEX(exit,$G80,2),IF('Period booking'!$D$10="Entry storage",INDEX(entrystorage,$G80,2),IF('Period booking'!$D$10="Entry Regular",INDEX(entry,$G80,2),IF('Period booking'!$D$10="Entry LNG",INDEX(entryLNG,$G80,2)))))) -> 0.97929664 | M80: =IF('Period booking'!$D$10="Exit storage",INDEX(exitstorage,$F80,3),IF('Period booking'!$D$10="Exit non-storage",INDEX(exit,$F80,3),IF('Period booking'!$D$10="Entry storage",INDEX(entrystorage,$F80,3),IF('Period booking'!$D$10="Entry Regular",INDEX(entry,$F80,3),IF('Period booking'!$D$10="Entry LNG",INDEX(entryLNG,$F80,3)))))) -> 0.40391671 | N80: =IF('Period booking'!$D$10="Exit storage",INDEX(exitstorage,$F80,4),IF('Period booking'!$D$10="Exit non-storage",INDEX(exit,$F80,4),IF('Period booking'!$D$10="Entry storage",INDEX(entrystorage,$F80,4),IF('Period booking'!$D$10="Entry Regular",INDEX(entry,$F80,4),IF('Period booking'!$D$10="Entry non-storage",INDEX(entry,1,1),IF('Period booking'!$D$10="Entry LNG",INDEX(entryLNG,$F80,4))))))) -> 0.0162528
B81: 2027 | C81: October | D81: 2027October | F81: 10 | G81: 10 | H81: 31 | I81: 92 | K81: =IF('Period booking'!$D$10="Exit storage",INDEX(exitstorage,1,1),IF('Period booking'!$D$10="Exit non-storage",INDEX(exit,1,1),IF('Period booking'!$D$10="Entry storage",INDEX(entrystorage,1,1),IF('Period booking'!$D$10="Entry Regular",INDEX(entry,1,1),IF('Period booking'!$D$10="Entry LNG",INDEX(entryLNG,1,1)))))) -> 4.94149823 | L81: =IF('Period booking'!$D$10="Exit storage",INDEX(exitstorage,$G81,2),IF('Period booking'!$D$10="Exit non-storage",INDEX(exit,$G81,2),IF('Period booking'!$D$10="Entry storage",INDEX(entrystorage,$G81,2),IF('Period booking'!$D$10="Entry Regular",INDEX(entry,$G81,2),IF('Period booking'!$D$10="Entry LNG",INDEX(entryLNG,$G81,2)))))) -> 1.72038599 | M81: =IF('Period booking'!$D$10="Exit storage",INDEX(exitstorage,$F81,3),IF('Period booking'!$D$10="Exit non-storage",INDEX(exit,$F81,3),IF('Period booking'!$D$10="Entry storage",INDEX(entrystorage,$F81,3),IF('Period booking'!$D$10="Entry Regular",INDEX(entry,$F81,3),IF('Period booking'!$D$10="Entry LNG",INDEX(entryLNG,$F81,3)))))) -> 0.47907487 | N81: =IF('Period booking'!$D$10="Exit storage",INDEX(exitstorage,$F81,4),IF('Period booking'!$D$10="Exit non-storage",INDEX(exit,$F81,4),IF('Period booking'!$D$10="Entry storage",INDEX(entrystorage,$F81,4),IF('Period booking'!$D$10="Entry Regular",INDEX(entry,$F81,4),IF('Period booking'!$D$10="Entry non-storage",INDEX(entry,1,1),IF('Period booking'!$D$10="Entry LNG",INDEX(entryLNG,$F81,4))))))) -> 0.0186457
B82: 2027 | C82: November | D82: 2027November | F82: 11 | G82: 10 | H82: 30 | I82: =IF(G82<>G81,SUM(F84:F84),I81) -> 92 | K82: =IF('Period booking'!$D$10="Exit storage",INDEX(exitstorage,1,1),IF('Period booking'!$D$10="Exit non-storage",INDEX(exit,1,1),IF('Period booking'!$D$10="Entry storage",INDEX(entrystorage,1,1),IF('Period booking'!$D$10="Entry Regular",INDEX(entry,1,1),IF('Period booking'!$D$10="Entry LNG",INDEX(entryLNG,1,1)))))) -> 4.94149823 | L82: =IF('Period booking'!$D$10="Exit storage",INDEX(exitstorage,$G82,2),IF('Period booking'!$D$10="Exit non-storage",INDEX(exit,$G82,2),IF('Period booking'!$D$10="Entry storage",INDEX(entrystorage,$G82,2),IF('Period booking'!$D$10="Entry Regular",INDEX(entry,$G82,2),IF('Period booking'!$D$10="Entry LNG",INDEX(entryLNG,$G82,2)))))) -> 1.72038599 | M82: =IF('Period booking'!$D$10="Exit storage",INDEX(exitstorage,$F82,3),IF('Period booking'!$D$10="Exit non-storage",INDEX(exit,$F82,3),IF('Period booking'!$D$10="Entry storage",INDEX(entrystorage,$F82,3),IF('Period booking'!$D$10="Entry Regular",INDEX(entry,$F82,3),IF('Period booking'!$D$10="Entry LNG",INDEX(entryLNG,$F82,3)))))) -> 0.68842517 | N82: =IF('Period booking'!$D$10="Exit storage",INDEX(exitstorage,$F82,4),IF('Period booking'!$D$10="Exit non-storage",INDEX(exit,$F82,4),IF('Period booking'!$D$10="Entry storage",INDEX(entrystorage,$F82,4),IF('Period booking'!$D$10="Entry Regular",INDEX(entry,$F82,4),IF('Period booking'!$D$10="Entry non-storage",INDEX(entry,1,1),IF('Period booking'!$D$10="Entry LNG",INDEX(entryLNG,$F82,4))))))) -> 0.02767239
B83: 2027 | C83: December | D83: 2027December | F83: 12 | G83: 10 | H83: 31 | I83: =IF(G83<>G82,SUM(F84:F85),I82) -> 92 | K83: =IF('Period booking'!$D$10="Exit storage",INDEX(exitstorage,1,1),IF('Period booking'!$D$10="Exit non-storage",INDEX(exit,1,1),IF('Period booking'!$D$10="Entry storage",INDEX(entrystorage,1,1),IF('Period booking'!$D$10="Entry Regular",INDEX(entry,1,1),IF('Period booking'!$D$10="Entry LNG",INDEX(entryLNG,1,1)))))) -> 4.94149823 | L83: =IF('Period booking'!$D$10="Exit storage",INDEX(exitstorage,$G83,2),IF('Period booking'!$D$10="Exit non-storage",INDEX(exit,$G83,2),IF('Period booking'!$D$10="Entry storage",INDEX(entrystorage,$G83,2),IF('Period booking'!$D$10="Entry Regular",INDEX(entry,$G83,2),IF('Period booking'!$D$10="Entry LNG",INDEX(entryLNG,$G83,2)))))) -> 1.72038599 | M83: =IF('Period booking'!$D$10="Exit storage",INDEX(exitstorage,$F83,3),IF('Period booking'!$D$10="Exit non-storage",INDEX(exit,$F83,3),IF('Period booking'!$D$10="Entry storage",INDEX(entrystorage,$F83,3),IF('Period booking'!$D$10="Entry Regular",INDEX(entry,$F83,3),IF('Period booking'!$D$10="Entry LNG",INDEX(entryLNG,$F83,3)))))) -> 0.89645547 | N83: =IF('Period booking'!$D$10="Exit storage",INDEX(exitstorage,$F83,4),IF('Period booking'!$D$10="Exit non-storage",INDEX(exit,$F83,4),IF('Period booking'!$D$10="Entry storage",INDEX(entrystorage,$F83,4),IF('Period booking'!$D$10="Entry Regular",INDEX(entry,$F83,4),IF('Period booking'!$D$10="Entry non-storage",INDEX(entry,1,1),IF('Period booking'!$D$10="Entry LNG",INDEX(entryLNG,$F83,4))))))) -> 0.03487479

Sheet Multipliers and SF (hidden)
B4: MULTIPLIERS AND SEASONAL FACTORS
B6: Multipliers (M)
B8: Quarterly multiplier | C8: M-Q | D8: 1.25
B9: Monthly multiplier | C9: M-M | D9: 1.5
B10: Daily multiplier | C10: M-DA | D10: 1.75
B11: Within-day multiplier | C11: M-WID | D11: 1.75
B13: Seasonal factors (SF) | D13: Month | E13: Day | F13: WID
B15: SF - Jan | D15: 1.715 | E15: 1.773 | F15: 1.773
B16: SF - Feb | D16: 1.533 | E16: 1.585 | F16: 1.585
B17: SF - March | D17: 1.199 | E17: 1.239 | F17: 1.239
B18: SF - April | D18: 0.894 | E18: 0.924 | F18: 0.924
B19: SF - May | D19: 0.792 | E19: 0.819 | F19: 0.819
B20: SF - June | D20: 0.665 | E20: 0.688 | F20: 0.688
B21: SF - July | D21: 0.628 | E21: 0.649 | F21: 0.649
B22: SF - August | D22: 0.597 | E22: 0.618 | F22: 0.618
B23: SF - Sept | D23: 0.663 | E23: 0.686 | F23: 0.686
B24: SF - Oct | D24: 0.761 | E24: 0.787 | F24: 0.787
B25: SF - Nov | D25: 1.130 | E25: 1.168 | F25: 1.168
B26: SF - Dec | D26: 1.424 | E26: 1.472 | F26: 1.472
B28: SF - Jan - March | D28: 1.482
B29: SF - April - June | D29: 0.784
B30: SF - July - Sept | D30: 0.629
B31: SF - Oct - Dec | D31: 1.105

Sheet Validation (hidden)
B4: VALIDATION POSTAGE STAMP POINTS
C6: Entry Regular
C7: Entry Storage
C8: Entry LNG
C9: Exit non-storage
C10: Exit storage
B12: VALIDATION FEBRUARY IN LEAP YEAR
C14: Yes
C15: No
